Cogmind - Beta 16.1 @@@ ROGUE MODE // 2026.04.26 @ 00:51:41 Player: Xintrosi Result: Heading to fleet! Performance ------------- Evolutions (9) 4500 Regions Visited (30) 6000 Robots Destroyed (815) 4075 Value Destroyed (46606) 46606 Prototype IDs (105) 2100 Alien Tech Used (6) 1200 Bonus (33718) 33718 TOTAL SCORE: 98199 Bonus ------- Triggered High Security 500 High Alert Combat Kills 21106 Follower Combat Kills 1820 Hunted by Unchained 500 Destroyed Unchained 1000 Network Hubs Disabled 800 Met Data Miner 300 Met Zhirov 300 Built Enhanced Grunts 300 A7 Reached Mainframe 300 Met R17 at Cetus 500 Used Core Reset Matrix 3000 Met R17 at Research 2000 Scanned by Researcher 500 Win 3000 Friendly Fire -2208 Cogmind --------- Core Integrity 1540/1600 Matter 687/700 Energy 715/4125 System Corruption 3% Temperature Cool (91) Movement Treading (230) Ox2 Location To Fleet Rendezvous Parts ------- > --- POWER (2) -------- Antimatter-Particle Reactor > --- PROPULSION (6) --- DW-4LL's Griptreads > --- UTILITY (12) ----- Armored Scrap Engine Advanced Heat Sink Concept Thermoelectric Network Huge Storage Unit Advanced Matter Compressor Concept Weapon Articulator Advanced Weapon Cycler Advanced Phase Shifter Concept RG22 Armor Graphene Brace Concept Energy Mantle > --- WEAPON (5) ------- Hpw. Ballistic Caster Construct/C Sigix Broadsword > --- INVENTORY (25) --- Particle Reactor Stasis Canceller Advanced ECM Suite Advanced Phase Shifter Concept Cloak Mesh Graphene Brace Advanced Force Field Concept Energy Mantle Hacking Suite Crosscalibrator High-powered Transdimensional Reconstructor Concept Variable Chargecaster Concept Variable Chargecaster Potential Cannon Heavy Machine Gun Gamma Bomb Array Z-bomb Delivery System Plasma Cutter Peak State ------------ > --- POWER ------------ Antimatter-Particle Reactor > --- PROPULSION ------- Biometal Exoskeleton > --- UTILITY ---------- Armored Scrap Engine Advanced Heat Sink Concept Thermoelectric Network Huge Storage Unit Concept Weapon Articulator Concept Core Shell Concept RG22 Armor Concept RG22 Armor Graphene Brace Concept Energy Mantle Crosscalibrator > --- WEAPON ----------- Hpw. Ballistic Caster Construct/C Sigix Broadsword > --- INVENTORY -------- Particle Reactor DW-4LL's Griptreads Advanced Heat Sink Advanced Matter Compressor Stasis Canceller Advanced ECM Suite Concept Cloak Mesh Concept Energy Mantle High-powered Transdimensional Reconstructor Concept Variable Chargecaster Concept Variable Chargecaster Concept Variable Chargecaster Concept Variable Chargecaster Potential Cannon Concept Miniperforator Concept Helical Railcannon Gamma Bomb Array Z-bomb Delivery System Plasma Cutter [Rating: 269] Favorites ----------- Power Constructs Engine Ion Engine Power Core Light Nuclear Core Reactor Constructs Propulsion Constructs Treads Light Treads Leg Constructs Wheel Wheel Utility Armored Scrap Engine Device Armored Scrap Engine Storage Huge Storage Unit Processor Advanced Targeting Computer Hackware Advanced Hacking Suite Protection Centrium Medium Armor Plating Weapon Constructs Energy Gun Cooled Pulse Rifle Energy Cannon Core Cannon Ballistic Gun Assault Rifle Ballistic Cannon Constructs Launcher Proton Missile Launcher Impact Weapon Heavy Mace Slashing Weapon Sigix Broadsword Build | -11 -10 -9 -9 -9 -7 -7 -7 -7 -6 -6 -6 -6 -5 -5 -5 -5 -5 -5 -5 -4 -4 -4 -4 -3 -3 -3 -2 -2 -2 -1 ------- Run | Yrd Mat Mat Sto Rec Fac Low Low Dat Pro Fac Low Low Fac Was Fac Ext Cet Arc Hub Fac Upp Upp War Pro Res Qua Res Tes Frg Acc Slots Evolved 18 | . . 2 . . 4 . . . . 2 . . 2 . . . . . . 2 . . . . 2 . 2 . . 2 Power 1 | . . . . . 1 . . . . . . . . . . . . . . . . . . . . . . . . . Propulsion 4 | . . 1 . . . . . . . . . . 1 . . . . . . 1 . . . . . . 1 . . . Utility 10 | . . . . . 2 . . . . 2 . . 1 . . . . . . 1 . . . . 1 . 1 . . 2 Weapon 3 | . . 1 . . 1 . . . . . . . . . . . . . . . . . . . 1 . . . . . Parts Attached 201 | 7 8 11 16 4 11 . 1 . 1 7 5 5 3 . 8 4 6 . 5 13 4 3 . 4 6 17 6 8 30 8 Power 13 | 1 2 1 3 . 1 . . . 1 . 1 . . . 1 . . . 1 1 . . . . . . . . . . Engine 10 | 1 2 1 3 . 1 . . . 1 . 1 . . . . . . . . . . . . . . . . . . . Core 2 | . . . . . . . . . . . . . . . 1 . . . . 1 . . . . . . . . . . Reactor 1 | . . . . . . . . . . . . . . . . . . . 1 . . . . . . . . . . . Propulsion 17 | 2 1 4 7 2 . . . . . . . . . . . . . . . . . . . . . . . . . 1 Treads 11 | 2 . 2 5 1 . . . . . . . . . . . . . . . . . . . . . . . . . 1 Leg . | . . . . . . . . . . . . . . . . . . . . . . . . . . . . . . . Wheel 6 | . 1 2 2 1 . . . . . . . . . . . . . . . . . . . . . . . . . . Hover . | . . . . . . . . . . . . . . . . . . . . . . . . . . . . . . . Flight . | . . . . . . . . . . . . . . . . . . . . . . . . . . . . . . . Utility 126 | 2 2 1 2 1 7 . 1 . . 7 3 4 3 . 6 3 4 . 4 9 4 3 . 4 4 13 4 6 22 7 Device 72 | 1 . . . 1 4 . 1 . . 5 2 3 . . 3 1 3 . 1 5 3 2 . 3 2 4 2 5 14 7 Storage 9 | 1 2 . . . 1 . . . . . . . 1 . 1 1 . . . 1 . . . . . 1 . . . . Processor 16 | . . 1 . . . . . . . . 1 . 1 . 1 . . . 1 . 1 . . 1 . 4 . . 5 . Hackware 6 | . . . . . 2 . . . . . . . . . . . . . . 1 . . . . . 2 1 . . . Protection 23 | . . . 2 . . . . . . 2 . 1 1 . 1 1 1 . 2 2 . 1 . . 2 2 1 1 3 . Artifact . | . . . . . . . . . . . . . . . . . . . . . . . . . . . . . . . Weapon 45 | 2 3 5 4 1 3 . . . . . 1 1 . . 1 1 2 . . 3 . . . . 2 4 2 2 8 . Energy Gun 8 | . . 1 1 . 1 . . . . . . . . . . . 1 . . . . . . . . . . 2 2 . Energy Cannon 6 | . . 1 . . . . . . . . . . . . . 1 . . . . . . . . . . 2 . 2 . Ballistic Gun 13 | 2 3 2 2 1 . . . . . . . . . . . . 1 . . 1 . . . . . 1 . . . . Ballistic Cannon 6 | . . . . . . . . . . . . . . . . . . . . 1 . . . . 2 . . . 3 . Launcher 8 | . . . 1 . 2 . . . . . 1 1 . . . . . . . 1 . . . . . 1 . . 1 . Special Weapon . | . . . . . . . . . . . . . . . . . . . . . . . . . . . . . . . Impact Weapon 3 | . . 1 . . . . . . . . . . . . 1 . . . . . . . . . . 1 . . . . Slashing Weapon 1 | . . . . . . . . . . . . . . . . . . . . . . . . . . 1 . . . . Piercing Weapon . | . . . . . . . . . . . . . . . . . . . . . . . . . . . . . . . Special Melee Weapon . | . . . . . . . . . . . . . . . . . . . . . . . . . . . . . . . Unidentified Prototypes 42 | . . 3 3 1 1 . . . . . 1 . . . . . 3 . . . . . . . 1 8 . 5 15 1 Corrupted Parts 2 | . . . . . . . . . . . . 1 . . . . . . . . . . . 1 . . . . . . System Corruption 5 | . . . . . . . . . . . . 3 . . . . . . . . . . . 2 . . . . . . Parts Lost 46 | . . 2 5 . 1 . 4 . 1 3 2 3 1 . . . . . 5 1 . . . . 2 3 2 2 8 1 Power 7 | . . . 2 . . . 1 . 1 . 1 . . . . . . . 1 . . . . . 1 . . . . . Propulsion 5 | . . 1 2 . . . 2 . . . . . . . . . . . . . . . . . . . . . . . Utility 28 | . . . . . . . 1 . . 2 1 3 1 . . . . . 3 1 . . . . 1 2 2 2 8 1 Weapon 6 | . . 1 1 . 1 . . . . 1 . . . . . . . . 1 . . . . . . 1 . . . . Highest Loss Streak 3 | . . 1 2 . 1 . 3 . 1 1 1 1 1 . . . . . 3 1 . . . . 2 2 1 2 2 1 To Critical Strikes . | . . . . . . . . . . . . . . . . . . . . . . . . . . . . . . . Average Backups 18 | 2 11 23 23 14 12 17 19 18 15 16 17 14 5 5 4 13 22 23 22 18 23 20 19 21 23 20 21 21 20 21 Power . | . 2 3 3 1 . . 1 1 . . . . . . . . 2 3 2 . 1 . . . . . . . . . Propulsion 1 | . 2 3 5 3 . 2 4 3 . . . . . . . . 2 3 2 1 . . . . . . 1 1 1 1 Utility 10 | . 2 7 7 5 6 10 11 11 11 11 13 11 4 4 3 8 8 8 7 11 15 14 14 16 16 14 10 10 10 8 Weapon 4 | . 4 9 6 4 4 . . 1 1 1 . . . . . 2 8 8 8 4 5 4 4 4 5 2 4 4 5 9 Tool/Special . | . . . . . . . . . . . . . . . . . . . . . . . . . . . . . . . Unused Backups 118 | . . 5 7 11 13 . 1 3 2 1 3 8 1 5 . 2 10 . 4 4 6 4 . . 6 2 . 4 6 10 Power 11 | . . . 1 2 . . 1 . . . . . . . . 1 1 . . 1 . 1 . . . 1 . 1 . 1 Propulsion 18 | . . . 3 5 . . . 3 1 . . . . . . . . . 2 . 1 . . . . . . . 3 . Utility 36 | . . 2 1 3 . . . . . 1 3 6 1 3 . . 5 . 1 1 1 . . . 3 1 . . 1 3 Weapon 50 | . . 3 2 1 13 . . . 1 . . 1 . 2 . 1 4 . 1 2 4 3 . . 3 . . 3 2 4 Tool/Special 3 | . . . . . . . . . . . . 1 . . . . . . . . . . . . . . . . . 2 Average Slot Usage (%) 60 | . 99 99 99 76 49 51 52 46 48 56 53 54 57 25 53 51 52 52 52 58 57 57 57 57 56 55 55 55 55 59 Engine 2 | . 14 11 10 10 3 . 1 1 . 5 3 6 5 . . . . . . 1 . . . . . . . . . . Core 1 | . . . . . 3 7 5 5 6 . 2 . . . 4 4 1 . 1 1 1 . . . . . . . . . Reactor 2 | . . . . . . . . . . . . . . . . . 3 5 4 3 3 5 5 5 4 4 4 4 4 4 Treads 3 | . 24 11 18 18 2 . . . 4 3 . 2 . . . . . . 1 . 3 2 . . . . . 1 . . Leg 2 | . . . . . 4 5 7 7 2 . . 3 5 5 2 3 5 5 3 2 1 . . . . 3 4 1 2 3 Wheel 1 | . 3 21 14 6 . . . . . . 4 . . . . . . . . . . 2 5 5 2 . . . . . Device 17 | . 14 11 2 5 12 15 14 15 15 20 20 16 17 11 16 17 17 17 14 16 17 18 21 21 22 20 21 25 23 28 Storage 5 | . 14 11 11 5 7 7 7 7 7 6 6 4 2 . . 4 5 5 5 5 5 5 5 5 4 4 4 4 4 7 Processor 3 | . . . . . . . . . . . 3 6 6 5 5 5 5 5 5 5 10 6 5 5 1 7 4 4 8 . Protection 4 | . . . 8 5 . . . . . 5 2 4 5 . 9 6 5 5 7 5 3 5 5 5 7 3 3 2 1 7 Energy Cannon 1 | . . . . 2 6 5 . . . 5 4 1 5 . 1 2 2 . . . . . . . 3 . . 2 2 . Ballistic Gun 4 | . 28 31 31 19 1 3 . . . . . . . . . . . . . 3 . . . . . . . . . . Ballistic Cannon 3 | . . . . 1 . 1 6 7 7 . 1 4 . . 2 2 2 5 5 4 7 9 10 9 4 4 4 1 2 3 Peak Build Rating 269 | 7 9 16 24 38 66 62 62 55 63 81 77 75 88 84 92 100 114 114 128 135 133 138 128 129 147 201 197 209 235 269 Average Rating 114 | 5 7 13 16 25 55 60 54 50 55 69 73 71 76 46 83 87 107 114 115 127 126 128 128 127 127 172 190 201 207 257 On Entrance 91 | . 7 9 14 18 37 62 62 55 50 58 76 74 71 88 46 82 95 114 114 115 130 126 128 128 121 134 193 190 203 225 Avg Prop Armor Cover (%) 13 | . 11 8 11 13 . . . . . . . . . 32 32 . . . . . . . . . . . . . . . Naked Turns . | . . . . . . . . . . . . . . . . . . . . . . . . . . . . . . . Heaviest Build 197 | 14 90 97 101 98 79 78 72 71 75 96 79 82 58 2 73 152 159 159 160 152 145 148 148 148 150 197 150 166 180 192 Greatest Support 243 | 40 40 26 26 77 84 83 83 49 82 82 45 61 61 3 69 107 107 107 176 176 109 98 98 98 123 123 120 121 102 243 Greatest Overweight (x) 9 | . 8 4 9 9 . . 1 1 1 1 1 1 1 . 1 1 1 1 1 1 1 1 1 1 1 1 1 3 3 2 Average Overweight (x) 1 | . 1 3 5 3 . . . 1 . 1 1 . . . . . 1 1 . . 1 1 1 1 1 . 1 2 1 . Largest Inventory Capacity 25 | 8 25 25 25 25 20 20 20 20 20 20 20 20 10 10 5 25 25 25 25 25 25 25 25 25 25 25 25 25 25 25 Average Capacity 21 | 6 17 25 25 15 20 20 20 20 20 20 20 16 7 5 5 21 25 25 25 25 25 25 25 25 25 25 25 25 25 25 Most Carried 25 | 3 19 25 25 25 20 20 20 20 18 20 20 20 10 10 5 25 25 25 25 25 25 25 20 24 25 25 25 25 25 25 Average Carried 19 | 2 11 23 24 15 13 18 19 19 16 18 19 16 6 4 4 14 24 25 23 20 24 21 20 22 24 23 23 24 24 24 Final Capacity 25 | 8 25 25 25 5 20 20 20 20 20 20 20 5 10 5 5 25 25 25 25 25 25 25 25 25 25 25 25 25 25 25 Final Carried 25 | 3 19 23 25 5 14 20 20 18 14 20 20 5 10 5 5 25 25 25 19 25 25 20 20 24 23 25 23 23 24 25 Scrap Engine Consumption 548 | . . . . 41 56 20 6 3 10 26 19 22 13 7 14 37 8 . 14 30 34 13 . 5 34 18 17 17 70 14 Constructs Created 10 | . . . . 3 2 . . . . 1 . . . . 2 . . . . . . . . . 1 . . . 1 . Constructs Modified 233 | . . . . 13 18 7 6 1 6 11 7 9 6 . 7 16 5 . 7 14 14 8 . 3 11 12 2 14 31 5 Class Distribution -------------------- 66% | Construct 14% | Scavenger-Construct 5% | Commander-Construct 4% | Mutant 4% | Scavenger-Tank Dominant Class ---------------- Mutant | -10/Materials Gunner | -9/Materials Scavenger-Tank | -9/Storage Scavenger-Tank | -9/Recycling Construct | -7/Factory Construct | -7/Lower Caves Construct | -7/Lower Caves Construct | -7/Data Miner Construct | -6/Proximity Caves Construct | -6/Factory Construct | -6/Lower Caves Construct | -6/Lower Caves Construct | -5/Factory Mutant | -5/Waste Construct | -5/Factory Construct | -5/Extension Commander-Construct | -5/Cetus Commander-Construct | -5/Archives Construct | -5/Hub_04(d) Construct | -4/Factory Construct | -4/Upper Caves Construct | -4/Upper Caves Construct | -4/Warlord Construct | -3/Proximity Caves Construct | -3/Research Scavenger-Construct | -3/Quarantine Scavenger-Construct | -2/Research Construct | -2/Testing Construct | -2/Protoforge Scavenger-Construct | -1/Access Resources | -11 -10 -9 -9 -9 -7 -7 -7 -7 -6 -6 -6 -6 -5 -5 -5 -5 -5 -5 -5 -4 -4 -4 -4 -3 -3 -3 -2 -2 -2 -1 ----------- Run | Yrd Mat Mat Sto Rec Fac Low Low Dat Pro Fac Low Low Fac Was Fac Ext Cet Arc Hub Fac Upp Upp War Pro Res Qua Res Tes Frg Acc Matter Collected 14605 | 297 676 343 862 368 817 428 31 . 81 219 212 391 53 . 204 197 95 . 195 464 482 582 . 424 500 1083 117 243 2666 2575 Remotely 40 | . . . . . . . . . . . . . . . 40 . . . . . . . . . . . . . . . Salvage Created 49984 | 101 898 437 1241 632 1149 724 154 . 294 1449 872 1291 152 . 580 1071 350 . 1750 1692 1575 981 . 425 703 2701 2140 1277 10520 14825 Parts 1833 | 7 59 28 97 26 49 30 8 . 11 58 31 45 8 . 24 40 18 . 97 75 63 23 . 13 23 99 84 70 461 286 Haulers Intercepted 18 | . 2 1 5 . . . . . . . 1 . . . . . . . 1 . . . . . . 1 2 . . 5 Recyclers Shooed 6 | . . . . 1 2 . . . . . . . 2 . . . . . . . . . . . . . . . . 1 Parts Field Recycled . | . . . . . . . . . . . . . . . . . . . . . . . . . . . . . . . Retrieved Matter . | . . . . . . . . . . . . . . . . . . . . . . . . . . . . . . . Parts Self-Destructed 116 | . . . . . . 15 5 . 6 . 15 21 . . . . . . . . 22 21 . 11 . . . . . . Prevented 62 | . . . . . . . . . . . 3 24 . . . . . . . . 33 2 . . . . . . . . Parts Restored 4 | . . . . . . . . . . . . . . . . . . . . . . . . . . . . . 3 1 Faulty 4 | . . . . . . . . . . . . . . . . . . . . . . . . . . . . . 3 1 Kills | -11 -10 -9 -9 -9 -7 -7 -7 -7 -6 -6 -6 -6 -5 -5 -5 -5 -5 -5 -5 -4 -4 -4 -4 -3 -3 -3 -2 -2 -2 -1 ------- Run | Yrd Mat Mat Sto Rec Fac Low Low Dat Pro Fac Low Low Fac Was Fac Ext Cet Arc Hub Fac Upp Upp War Pro Res Qua Res Tes Frg Acc Combat Hostiles Destroyed 661 | . 23 7 22 4 24 17 5 . 8 23 12 19 1 . 8 9 4 . 24 26 25 18 . 9 7 31 20 16 137 162 Melee 3 | . . . . . . . . . . . . . . . . . . . . . . . . . . . 2 . . 1 Guns 90 | . 23 7 19 4 6 13 5 . 6 6 . . . . . . . . . 1 . . . . . . . . . . Cannons 480 | . . . . . 8 4 . . 1 15 10 11 1 . 7 9 4 . 24 16 12 17 . 9 5 20 14 16 121 156 AOE 47 | . . . 3 . 10 . . . . 1 2 6 . . . . . . . 7 8 . . . 1 . . . 9 . Classes Destroyed 31 | 2 5 1 . 2 2 1 . . 1 1 . 1 . . . . . . 3 . . . . 1 1 3 . . 5 2 Worker 26 | . 1 . 2 . 1 . . . . . . . . . 2 . . . 1 . . . . . . . 2 1 1 15 Builder 33 | . . . . . 1 . . . . . . . . . . . . . 1 . . . . . . 1 3 1 7 19 Tunneler 3 | 2 1 . . . . . . . . . . . . . . . . . . . . . . . . . . . . . Hauler 18 | . 2 1 5 . . . . . . . 1 . . . . . . . 1 . . . . . . 1 2 . . 5 Recycler 29 | 1 . 1 1 5 1 . . . . 4 . . 1 . 1 4 . . . 1 . . . . 1 . 2 1 . 5 Carrier 10 | . . . . . . . . . . . . . . . . . . . . . . . . . . . . . 3 7 Mechanic 8 | . . . . . . . . . . . . . . . . . . . . . . . . . . . . . 3 5 Operator 6 | . 1 . . . 1 . . . . . . . . . . . . . 1 1 . . . . . 1 . . 1 . Drone 7 | . . . . . . . . . . . . . . . . . . . . . . . . 1 . . . . 6 . Watcher 18 | . . . . . . . . . . 1 . . . . 1 1 2 . 1 . . . . . . 1 2 . 3 6 Swarmer 70 | . 8 . 5 . . 5 4 . 4 10 . 2 . . 3 . . . . 4 7 2 . . . . 3 . . 13 Saboteur 15 | . . . . . . . . . . . . . . . . . . . . . . . . . . . . . 3 12 Grunt 270 | . 15 6 8 . 18 9 . . 2 3 9 12 . . . 2 . . 10 15 14 12 . 3 4 9 7 2 47 63 Brawler 26 | . . . . . . . . . 1 . 1 2 . . . . . . . . 1 2 . . . . . 1 7 11 Duelist 27 | . . . . . 2 . . . . . 1 1 . . . . . . . . . . . 1 . . 1 1 7 13 Protector 14 | . . . . . . . . . . . . . . . . . . . 1 . . . . . . . . . 6 7 Researcher 5 | . . . . . . . . . . . . . . . . . . . . . . . . . . 2 . . 3 . Sentry 57 | . . 1 9 2 3 1 1 . 1 3 1 1 . . 2 5 . . 2 2 3 2 . . 2 3 2 . 10 1 Specialist 1 | . . . . . . . . . . . . . . . . . . . . . . . . . . 1 . . . . Hunter 30 | . . . . . . 2 . . . 2 . . 1 . . . 1 . 1 . . . . 2 . 2 . 2 8 9 Programmer 82 | . . . . 2 1 . . . . 5 . . . . 3 1 . . 4 5 . . . 1 . 14 6 10 18 12 Heavy 2 | . . . . . . . . . . . . . . . . . . . 1 . . . . . . . . . . 1 Behemoth 4 | . . . . . . . . . . . . . . . . . . . 1 . . . . 1 1 . 1 . . . Cetus Guard 3 | . . . . . . . . . . . . . . . . . 3 . . . . . . . . . . . . . Lightning 4 | . . . . . . . . . . . . . . . . . . . 4 . . . . . . . . . . . Hotshot 11 | . . . . . . . . . . . . . . . . . . . . . . . . . . . . . 11 . Decapitator 5 | . . . . . . . . . . . . . . . . . . . . . . . . . . . . . 5 . Immortal 5 | . . . . . . . . . . . . . . . . . . . . . . . . . . . . . 5 . Investigator 2 | . . . . . . . . . . . . . . . . . . . . . . . . . . . . . . 2 Striker 11 | . . . . . . . . . . . . . . . . . . . . . . . . . . . . . . 11 Executioner 9 | . . . . . . . . . . . . . . . . . . . . . . . . . . . . . . 9 Alpha 7 3 | . . . . . . . . . . . . . . . . . . . . . . . . . . 1 . . 2 . V-Series 3 | . . . . . . . . . . . . . . . . . . . . . . . . . . . . . 3 . Scrapper 1 | . . . . 1 . . . . . . . . . . . . . . . . . . . . . . . . . . Packrat 1 | . . . . . . . . . . . . 1 . . . . . . . . . . . . . . . . . . Thug 1 | . . . . . . . . . . . . . . . . 1 . . . . . . . . . . . . . . Mutant 1 | . . . . . . . . . . . . 1 . . . . . . . . . . . . . . . . . . Revision 1 | . . . . . . . . . . . . . . . . . . . . . . . . . 1 . . . . . Best Kill Streak 31 | 2 5 3 6 3 5 5 4 . 4 6 5 5 2 . 6 3 3 . 5 8 10 6 . 3 2 4 8 4 15 31 Combat Bots Only 25 | . 4 2 6 3 4 5 4 . 4 5 5 5 1 . 3 2 2 . 5 8 10 6 . 3 2 4 7 3 12 25 Max Kills in Single Turn 4 | 1 1 2 3 2 3 1 1 . 1 1 1 2 1 . 1 1 1 . 2 4 2 2 . 1 1 2 2 1 3 4 Gunslinging 1 | . . . . 1 . . . . . . . . . . . . . . . . . . . . . . . . . . Exploded 4 | . . . 3 . 3 . . . . 1 1 2 . . . . . . . 4 2 . . . 1 . . . 3 . Melee 1 | . . . . . . . . . . . . . . . . . . . . . . . . . . . 1 . . 1 Uniques/NPCs Destroyed 1 | . . . . . . . . . . . . . . . . . . . . . . . . . . 1 . . . . DW-4LL (-3/Quarantine) Combat | -11 -10 -9 -9 -9 -7 -7 -7 -7 -6 -6 -6 -6 -5 -5 -5 -5 -5 -5 -5 -4 -4 -4 -4 -3 -3 -3 -2 -2 -2 -1 -------- Run | Yrd Mat Mat Sto Rec Fac Low Low Dat Pro Fac Low Low Fac Was Fac Ext Cet Arc Hub Fac Upp Upp War Pro Res Qua Res Tes Frg Acc Hostile Shots Fired 2898 | . 106 40 62 35 220 118 57 . 78 208 65 108 38 . 49 109 16 . 203 109 102 79 . 70 53 167 108 100 441 157 Missed 836 | . 26 11 14 7 74 32 25 . 22 64 13 34 3 . 21 30 3 . 40 36 34 25 . 14 13 57 25 23 126 64 Hits 2062 | . 80 29 48 28 146 86 32 . 56 144 52 74 35 . 28 79 13 . 163 73 68 54 . 56 40 110 83 77 315 93 Melee 36 | . . . . . 4 . . . 1 . 1 2 . . . . . . . . . . . . . . . . 24 4 Projectile 2026 | . 80 29 48 28 142 86 32 . 55 144 51 72 35 . 28 79 13 . 163 73 68 54 . 56 40 110 83 77 291 89 AOE 8 | . . . . . 1 . . . . . . . . . 2 . . . . . . . . . 2 . . . 2 1 Critical Strikes 125 | . . . 2 1 12 6 2 . . 6 2 6 . . 1 5 1 . 17 6 2 3 . 1 3 4 3 5 30 7 Actively Blocked 21 | . . . . . . . . . . . . . . . . . . . . . . . . . . . . 1 13 7 Part Disruptions 5 | . . . . 1 . . . . . . . . . . . . . . . . . . . . . . . . 2 2 Damage Taken 39525 | . 777 361 708 482 2077 1379 381 . 933 1514 1055 1471 603 . 638 962 190 123 4405 1619 1439 1090 . 1119 1169 2361 1962 1676 7384 1647 Core 2271 | . 113 44 107 78 216 88 17 . 74 115 87 144 38 . 7 57 27 . 174 39 69 45 . 70 66 90 24 60 362 60 Absorbed by Shields 5618 | . . . . . . . . . . . . . 76 . 28 552 198 126 769 . . . . . . . . 767 2010 1092 Redirected to Shielding 238 | . . . . . . . . . . . . . . . . . . . . . . . . . . . . 116 112 10 Ignored by Resistances 1276 | . . . . . . . . . . 297 . 83 . . 53 305 . . . . . . . . . . . 255 283 . Regen/Repaired (Parts) 23052 | . 140 . . 5 1193 606 568 . 175 1113 806 1001 226 5 116 560 155 . 1089 1210 952 743 . 277 954 1411 942 1684 5387 1734 Core Remaining (%) 69 | 100 54 . . 42 . . . . 43 . . 59 . . . . . . 69 . . . . 80 . 88 . . 59 96 Volleys Fired 1998 | 8 86 30 53 23 109 70 14 . 43 102 39 46 14 . 43 52 16 . 120 68 52 58 . 49 45 113 82 66 338 259 Largest 3 | 2 2 3 3 3 2 2 2 . 2 2 1 1 1 . 1 1 1 . 2 2 2 2 . 2 2 1 1 1 2 1 Hottest 377 | 40 40 60 66 189 285 321 285 . 183 343 358 377 368 . 160 148 134 . 135 135 151 321 . 321 294 282 128 168 350 254 Shots Fired 2430 | 16 172 90 157 61 126 86 16 . 49 109 38 46 14 . 43 52 16 . 130 72 74 82 . 69 55 107 82 65 345 258 Gun 716 | 16 172 90 156 59 55 67 11 . 34 42 . . . . . . . . 10 4 . . . . . . . . . . Cannon 1642 | . . . . 2 56 19 5 . 15 67 35 28 14 . 43 52 16 . 120 65 61 82 . 69 51 102 82 65 335 258 Launcher 72 | . . . 1 . 15 . . . . . 3 18 . . . . . . . 3 13 . . . 4 5 . . 10 . Special . | . . . . . . . . . . . . . . . . . . . . . . . . . . . . . . . Kinetic 1483 | 16 172 90 156 59 28 38 . . . 8 30 17 1 . 19 50 14 . 13 69 49 71 . 45 41 48 46 9 173 221 Thermal 742 | . . . . 2 66 48 16 . 49 78 5 8 13 . 24 2 2 . 117 . 12 11 . 24 10 . . 56 162 37 Explosive 20 | . . . . . 15 . . . . . . . . . . . . . . . . . . . . . . . 5 . Electromagnetic 95 | . . . 1 . 17 . . . . 23 3 21 . . . . . . . 3 13 . . . 4 5 . . 5 . Impact 90 | . . . . . . . . . . . . . . . . . . . . . . . . . . 54 36 . . . Robot Hit Streak 28 | 6 13 12 15 15 11 9 8 . 16 14 12 8 6 . 13 9 9 . 10 8 9 11 . 10 6 10 8 6 18 28 Robot Miss Streak 8 | 1 7 6 2 4 5 4 3 . 3 3 2 3 1 . 2 2 2 . 8 4 3 2 . 3 4 5 5 2 6 3 Penetration Max 2 | . . . . . . . . . . . 1 1 . . . 1 . . . 1 . 2 . . . . . . 2 2 Secondary Targets 9 | . 5 2 1 1 . . . . . . . . . . . . . . . . . . . . . . . . . . Max Gunslinging Chain 1 | . 1 1 1 1 . . . . . . . . . . . . . . . . . . . . . . . . . . Capacitor 13 | . . . . . . . . . . . . . . . . . . . . . . . . . . . . . 13 . Shots Hit Robots 1511 | 10 111 56 105 39 67 66 10 . 38 63 25 29 6 . 24 38 12 . 61 42 31 58 . 38 18 61 43 32 221 207 Core Hits 915 | 5 48 18 48 20 75 31 6 . 13 29 17 25 2 . 14 15 6 . 29 32 39 28 . 13 16 34 19 14 190 129 Critical Kills 172 | . 1 . 2 . . . . . . . . . . . . 1 . . 12 6 3 3 . . . . 1 . 32 111 Critical Parts Destroyed 242 | . 1 . 1 . . . . . . . . . . . . 1 1 . 16 7 3 2 . . . 3 1 . 56 150 Critical Strikes 480 | . 2 . 3 . 1 1 1 . 2 4 . . . . . 2 1 . 30 14 6 14 . 4 . 4 8 1 105 277 Burn 9 | . . . . . 1 1 1 . 2 4 . . . . . . . . . . . . . . . . . . . . Meltdown 1 | . . . . . . . . . . . . . . . . . . . . . . . . . . . . . 1 . Destroy 447 | . 2 . 3 . . . . . . . . . . . . 2 1 . 30 14 6 6 . . . 3 2 . 101 277 Blast 23 | . . . . . . . . . . . . . . . . . . . . . . 8 . 4 . 1 6 1 3 . Melee Attacks 32 | . . 1 9 . . . . . . . . . . . 5 . . . . 3 . . . . . 2 6 1 2 3 Impact 18 | . . 1 9 . . . . . . . . . . . 5 . . . . 3 . . . . . . . . . . Slashing 14 | . . . . . . . . . . . . . . . . . . . . . . . . . . 2 6 1 2 3 Piercing . | . . . . . . . . . . . . . . . . . . . . . . . . . . . . . . . Sneak Attacks 5 | . . . . . . . . . . . . . . . . . . . . . . . . . . 1 . . 1 3 Combat Hostiles . | . . . . . . . . . . . . . . . . . . . . . . . . . . . . . . . Follow-up Attacks . | . . . . . . . . . . . . . . . . . . . . . . . . . . . . . . . Damage Inflicted 188005 | 110 1284 728 1704 608 3591 1688 282 . 1162 3139 1449 3141 500 . 1414 3877 1478 . 7834 4725 2856 3896 . 2314 2511 9825 7587 4988 39310 76004 Guns 7640 | 110 1284 728 1505 608 879 987 153 . 572 612 . . . . . . . . 132 70 . . . . . . . . . . Cannons 166716 | . . . . . 1420 701 129 . 590 2135 1173 2083 486 . 1313 3877 1478 . 7036 3345 1472 3896 . 2314 1750 8479 7287 4988 35269 75495 Explosions 12403 | . . . 199 . 1292 . . . . 392 276 1058 . . 101 . . . 661 1310 1384 . . . 761 1101 . . 3801 67 Melee 1227 | . . . . . . . . . . . . . . . . . . . . . . . . . . 245 300 . 240 442 Ramming 19 | . . . . . . . . . . . . . 14 . . . . . 5 . . . . . . . . . . . Kinetic 123438 | 110 1284 728 1505 608 450 657 . . . 220 989 1445 . . 93 3743 1216 . 132 3415 1239 3067 . 761 1130 3559 4765 665 20777 70880 Thermal 44181 | . . . . . 1463 1031 282 . 1162 2175 184 521 486 . 1220 134 262 . 7036 594 317 829 . 1553 1038 . . 4323 14956 4615 Explosive 4031 | . . . . . 1292 . . . . . . . . . 101 . . . . 321 . . . . . . . . 2270 47 Electromagnetic 7667 | . . . 199 . 386 . . . . 744 276 1175 . . . . . . 661 395 1300 . . . 343 1101 . . 1067 20 Impact 7442 | . . . . . . . . . . . . . . . . . . . . . . . . . . 4920 2522 . . . Slashing 1227 | . . . . . . . . . . . . . . . . . . . . . . . . . . 245 300 . 240 442 Piercing . | . . . . . . . . . . . . . . . . . . . . . . . . . . . . . . . Highest Corruption 37 | . . . 2 3 3 3 3 3 3 2 2 5 . . 2 2 2 . 34 4 1 1 1 3 2 21 6 11 37 3 Average Corruption 5 | . . . 2 2 1 3 3 3 3 2 2 2 . . 1 2 1 . 15 2 1 1 1 1 1 13 3 7 16 1 Corruption Purged 10 | . . . . . . . . . . . . . . . . . 2 . . 4 . . . . . . 3 1 . . Corruption Blocked . | . . . . . . . . . . . . . . . . . . . . . . . . . . . . . . . Effects 506 | . . . 2 44 22 16 12 4 15 13 13 16 . . 4 26 . . 23 . 5 22 1 4 . 87 3 39 113 22 Message Errors 132 | . . . . 10 8 4 3 . 4 5 2 5 . . 1 7 . . 4 . . 7 . . . 17 . 15 34 6 Matter Fused 112 | . . . 2 10 4 3 3 2 3 3 2 5 . . 1 2 . . 4 . 2 4 . . . 26 1 8 22 5 Heat Flow Errors 50 | . . . . 7 2 1 1 . 1 2 1 . . . 1 3 . . 2 . . . . . . 11 2 3 12 1 Energy Discharges 58 | . . . . 3 3 1 1 1 2 2 3 1 . . . 4 . . 1 . . 4 1 3 . 8 . 6 11 3 Parts Rejected 4 | . . . . . . . . . . 1 . . . . . . . . . . . . . . . 2 . . 1 . Parts Fused 7 | . . . . . . . . . 1 . . 1 . . . . . . 1 . 1 . . . . 2 . . 1 . Data Loss (minor) 64 | . . . . 5 2 3 3 1 2 . 2 1 . . 1 8 . . 5 . 2 6 . . . 6 . 4 9 4 Data Loss (major) 28 | . . . . 5 1 1 . . 2 . 2 3 . . . 1 . . 1 . . 1 . 1 . 3 . 2 5 . Misfires 5 | . . . . 3 1 1 . . . . . . . . . . . . . . . . . . . . . . . . Alerts 14 | . . . . 1 1 . 1 . . . . . . . . 1 . . 2 . . . . . . 5 . . 1 2 Misdirections 6 | . . . . . . . . . . . . . . . . . . . 2 . . . . . . 1 . . 3 . Weapon Failures 26 | . . . . . . 2 . . . . 1 . . . . . . . 1 . . . . . . 6 . 1 14 1 Overload Shots 1 | . . . . . . . . . . 1 . . . . . . . . . . . . . . . . . . . . Overflow Damage 40827 | . . . 66 . 393 107 . . 18 358 . 235 43 . 84 289 149 . 1113 455 4 395 . 136 105 3432 2489 1370 6179 23407 Projectiles 39892 | . . . . . 378 107 . . 18 252 . 234 43 . 53 289 149 . 1046 419 4 395 . 136 105 3432 2464 1370 5774 23224 Explosions 727 | . . . 66 . 15 . . . . 106 . 1 . . 31 . . . 67 36 . . . . . . . . 405 . Melee 208 | . . . . . . . . . . . . . . . . . . . . . . . . . . . 25 . . 183 Knockbacks 216 | . . . . . . 3 . . . 1 6 5 . . . 7 . . . 12 4 16 . 5 3 21 16 1 59 57 Impact 18 | . . . . . . . . . . . . . . . . . . . . . . . . . . 14 4 . . . Kinetic 164 | . . . . . . 3 . . . 1 6 5 . . . 7 . . . 11 4 13 . 4 3 4 8 1 51 43 Secondary 34 | . . . . . . . . . . . . . . . . . . . . 1 . 3 . 1 . 3 4 . 8 14 Self-Inflicted Damage 1355 | . . . 73 . 165 . . . . . 34 76 . . 61 . . . 320 98 114 . . . 64 56 . . 294 . Shots 40 | . . . 2 . 4 . . . . . 3 5 . . 1 . . . 4 2 6 . . . 1 6 . . 6 . Rammed . | . . . . . . . . . . . . . . . . . . . . . . . . . . . . . . . Targets Rammed 2 | . . . . . . . . . . . . . 1 . . . . . 1 . . . . . . . . . . . Kicked 2 | . . . . . . . . . . . . . 1 . . . . . 1 . . . . . . . . . . . Crushed . | . . . . . . . . . . . . . . . . . . . . . . . . . . . . . . . Highest Temperature 604 | . 12 13 70 260 463 360 264 . 248 604 436 566 368 . 408 400 342 . 406 217 295 501 . 404 177 321 324 391 338 204 Average Temperature 125 | . 7 5 19 83 124 137 119 . 119 179 154 178 163 . 140 120 120 . 141 61 86 175 . 136 72 125 106 147 46 113 Received Heat Transfer 6590 | . 261 180 225 130 831 504 24 . 246 123 487 534 . . 52 239 . . 263 273 256 292 . 132 186 165 243 56 806 82 Thermoelectric Energy+ 2370 | . . . . . . . . . . . . . . . . . . . . . . . . . . . . . . 2370 Effects 45 | . . . . . 5 . . . . 9 2 8 5 . 4 2 . . 3 . 1 4 . 1 . 1 . . . . Shutdowns 5 | . . . . . 2 . . . . . . 2 . . 1 . . . . . . . . . . . . . . . Energy Bleed 10 | . . . . . . . . . . 3 . 2 2 . . . . . 3 . . . . . . . . . . . Interference 18 | . . . . . 1 . . . . 5 1 . 3 . 3 2 . . . . 1 1 . . . 1 . . . . Matter Decay 5 | . . . . . 1 . . . . . 1 3 . . . . . . . . . . . . . . . . . . Short Circuit 2 | . . . . . . . . . . . . . . . . . . . . . . 2 . . . . . . . . Damage (minor) 4 | . . . . . 1 . . . . 1 . 1 . . . . . . . . . . . 1 . . . . . . Damage (major) 1 | . . . . . . . . . . . . . . . . . . . . . . 1 . . . . . . . . Siege Activations . | . . . . . . . . . . . . . . . . . . . . . . . . . . . . . . . Martial Activations . | . . . . . . . . . . . . . . . . . . . . . . . . . . . . . . . Shielding Activations . | . . . . . . . . . . . . . . . . . . . . . . . . . . . . . . . Robots Disrupted 1 | . . . . . . . . . . . . . . . . . . . . . . . . . . . . . 1 . Combat Hostiles 1 | . . . . . . . . . . . . . . . . . . . . . . . . . . . . . 1 . Robots Corrupted 41 | . . . 1 . . . . . . 1 . 2 . . . . . . . 2 5 1 . . . 13 4 . 6 6 Combat Hostiles 37 | . . . . . . . . . . 1 . 2 . . . . . . . 2 5 1 . . . 11 4 . 6 5 Parts Fried 90 | . . . 1 . 3 . . . . 8 . 7 . . . . . . 2 5 6 . . . 1 30 10 . 7 10 Impact Corruptions 91 | . . . . . . . . . . . . . . . . . . . . . . 2 . . . 55 15 . 3 16 Robots Melted 4 | . . . . . . . . . 1 . . . . . 1 . . . . . . . . . 1 . . . 1 . Combat Hostiles 4 | . . . . . . . . . 1 . . . . . 1 . . . . . . . . . 1 . . . 1 . Parts Melted 38 | . . . . . . 2 5 . 3 9 . . 1 . 7 . 1 . . . 2 . . . . . . 2 1 5 Heat Transferred 19954 | . . . . . 1184 1295 444 . 1682 2543 200 285 222 . 1500 74 74 . 2070 450 350 296 . 555 382 . . 1110 4498 740 Parts Sabotaged 1 | . . . . . . . . . . . . . . . . . . . . . . . . . . . . . . 1 Parts Stolen . | . . . . . . . . . . . . . . . . . . . . . . . . . . . . . . . Parts Stripped . | . . . . . . . . . . . . . . . . . . . . . . . . . . . . . . . Power Chain Reactions 7 | . . . 1 . . . . . . . . 1 . . . . . . 1 . 2 . . . 1 . . . 1 . Alert | -11 -10 -9 -9 -9 -7 -7 -7 -7 -6 -6 -6 -6 -5 -5 -5 -5 -5 -5 -5 -4 -4 -4 -4 -3 -3 -3 -2 -2 -2 -1 ------- Run | Yrd Mat Mat Sto Rec Fac Low Low Dat Pro Fac Low Low Fac Was Fac Ext Cet Arc Hub Fac Upp Upp War Pro Res Qua Res Tes Frg Acc Maximum Alert Level 5 | . 1 . 1 . 2 . . . . 2 . . . . . 2 2 2 4 4 . . . . 2 2 2 2 5 5 Low Security (%) 41 | 100 94 100 69 100 25 . . . . 70 . . 100 100 100 71 . 57 36 . . . . . . 15 55 33 . . Level 1 20 | . 5 . 30 . 34 . . . . 11 . . . . . 19 13 12 14 . . . . . 17 78 31 48 12 . Level 2 17 | . . . . . 40 . . . . 17 . . . . . 8 86 31 23 54 . . . . 82 5 13 18 7 . Level 3 2 | . . . . . . . . . . . . . . . . . . . 17 21 . . . . . . . . 7 . Level 4 4 | . . . . . . . . . . . . . . . . . . . 8 23 . . . . . . . . 25 . Level 5 8 | . . . . . . . . . . . . . . . . . . . . . . . . . . . . . 47 36 High Security 5 | . . . . . . . . . . . . . . . . . . . . . . . . . . . . . . 63 Max Security . | . . . . . . . . . . . . . . . . . . . . . . . . . . . . . . . Sterilizations 1 | . . . . . . . . . . . . . . . . . . . . . . . . . . . . . . 1 Peak Influence 6982 | 5 263 120 245 121 577 . . . . 605 . . 80 . 142 505 631 539 1398 1444 . . . . 600 460 482 437 3734 6982 Initial 2239 | . . 105 24 70 250 . . . . 38 . . 78 . . 52 268 175 153 681 . . . . 600 280 196 267 218 2239 Average 753 | 1 80 55 158 18 329 . . . . 162 . . 23 . 45 136 479 290 482 849 . . . . 471 291 185 252 1688 4430 Influence Increases 25321 | 15 723 207 708 324 1193 435 140 . 180 994 280 441 66 . 410 990 625 414 1737 1235 550 444 . 191 1025 1044 764 793 4298 5095 Destroy 0b10 Robot/C 13900 | . 460 140 440 100 480 340 100 . 160 460 240 380 20 . 160 480 260 200 460 520 500 360 . 160 140 640 400 320 2700 3280 Destroy 0b10 Robot/NC 800 | 15 25 10 40 25 20 . . . . 25 5 . 5 . 20 30 10 . 30 10 . . . 10 5 20 55 15 115 310 Destroy Leader 2198 | . 104 42 140 . 100 50 10 . 20 132 20 30 10 . 52 54 20 . 114 100 20 20 . 20 30 94 98 60 336 522 Allied During Kill 851 | . . . . 7 1 . . . . . . 1 . . . 300 290 200 47 . . 4 . 1 . . . . . . Successful Hack 425 | . 28 . 30 23 88 . . . . 16 . . . . 20 36 . . . 84 . . . . . 35 31 18 . 16 Select Force Hacks 210 | . 60 . . 150 . . . . . . . . . . . . . . . . . . . . . . . . . . Disable Machine 1590 | . 15 15 15 15 105 . . . . 195 . . 15 . 60 30 15 . 315 255 . . . . . 135 . 75 240 90 Anti-Garrison Action 550 | . . . . . . . . . . . . . . . . . . . . . . . . . 200 . . 200 150 . Destroy Structure 3242 | . 1 . 13 4 149 . . . . 136 . . 16 . 68 60 30 14 696 266 . . . . 50 60 135 75 727 742 Advance Influence 850 | . . . . . 250 . . . . . . . . . . . . . . . . . . . 600 . . . . . Partial Spotted 45 | . . . . . . . . . . 15 . . . . . . . . . . . . . . . . 15 15 . . Lose Combat Pursuer 660 | . 30 . 30 . . 45 30 . . 15 15 30 . . 30 . . . 75 . 30 60 . . . 60 30 15 30 135 Influence Decreases 18339 | 15 472 399 587 504 631 571 400 166 118 457 592 603 191 . 302 617 667 414 784 1189 1185 764 483 191 526 1193 638 881 954 1845 Entered New Map 6041 | . . 146 35 110 . 209 82 166 . 24 222 55 47 . . 56 213 264 286 711 533 154 483 . . 219 154 209 170 1493 Time Decay 10865 | 15 472 233 502 394 571 362 278 . 108 403 350 478 134 . 302 483 374 50 428 458 652 610 . 191 506 644 319 502 704 342 Lost Part 460 | . . 20 50 . 10 . 40 . 10 30 20 30 10 . . . . . 50 10 . . . . 20 30 20 20 80 10 Lost Ally 378 | . . . . . 50 . . . . . . 40 . . . 78 80 100 20 10 . . . . . . . . . . Purge Threat 595 | . . . . . . . . . . . . . . . . . . . . . . . . . . 300 145 150 . . Squads Dispatched 128 | . 7 2 3 . 8 . . . . 5 . 1 . . 2 2 1 . 9 6 . 1 . . 6 9 4 6 25 31 Investigation 19 | . 5 . . . 3 . . . . 1 . . . . . . 1 . 1 1 . . . . 3 1 . 1 2 . Extermination 31 | . . . . . 3 . . . . 2 . . . . 2 . . . 1 2 . . . . . 6 2 4 7 2 Reinforcement 24 | . 2 2 3 . 1 . . . . 1 . . . . . 2 . . 4 1 . . . . 3 2 1 . . 2 Assault 53 | . . . . . 1 . . . . 1 . 1 . . . . . . 3 2 . 1 . . . . 1 . 16 27 Garrison 1 | . . . . . . . . . . . . . . . . . . . . . . . . . . . . 1 . . Intercept . | . . . . . . . . . . . . . . . . . . . . . . . . . . . . . . . Searches Triggered . | . . . . . . . . . . . . . . . . . . . . . . . . . . . . . . . Unchained Authorized 1 | . . . . . . . . . . . . . . . . . . . . . . . . . . 1 . . . . Data Miner Redirects 4 | . . . . . . . . . . 2 . . . . . . . . 1 . . . . . . . 1 . . . Construction Impeded 2 | . . . . . . . . . . . . . . . . 1 . . . . . . . . . 1 . . . . Haulers Reinforced 5 | . . . . . . . . . . 1 . . . . . . . . 1 . . . . . 1 . 1 . . 1 Active Scanning Responses . | . . . . . . . . . . . . . . . . . . . . . . . . . . . . . . . Cargo Convoy Interrupts . | . . . . . . . . . . . . . . . . . . . . . . . . . . . . . . . Stealth | -11 -10 -9 -9 -9 -7 -7 -7 -7 -6 -6 -6 -6 -5 -5 -5 -5 -5 -5 -5 -4 -4 -4 -4 -3 -3 -3 -2 -2 -2 -1 --------- Run | Yrd Mat Mat Sto Rec Fac Low Low Dat Pro Fac Low Low Fac Was Fac Ext Cet Arc Hub Fac Upp Upp War Pro Res Qua Res Tes Frg Acc Distress Signals 36 | . 3 . 1 . . . . . . 2 . . . . 1 1 2 . . . . . . . 8 4 4 5 . 5 Communications Jammed 4 | . . . . . . . . . . . . . . . . . . . . . . . . 1 . . . . 3 . Distress Signals 3 | . . . . . . . . . . . . . . . . . . . . . . . . . . . . . 3 . Times Spotted 853 | . 42 9 29 7 34 23 6 . 8 30 13 26 3 6 14 22 12 . 42 34 27 25 . 11 16 43 34 22 140 175 Peak Tracking Total 10 | . 6 4 4 4 5 9 4 . 4 5 5 9 2 6 5 3 5 . 8 6 10 9 . 4 5 5 6 3 10 9 Tactical Retreats 58 | . 2 . 1 . . 3 1 . . 1 1 2 2 1 3 . . . 7 5 1 3 . . . 2 7 6 2 8 ECM-based Alert Blocks 37 | . . . . . . . . . . . . . 2 . 2 . . . 10 13 . . . . . . 5 5 . . Traps | -11 -10 -9 -9 -9 -7 -7 -7 -7 -6 -6 -6 -6 -5 -5 -5 -5 -5 -5 -5 -4 -4 -4 -4 -3 -3 -3 -2 -2 -2 -1 ------- Run | Yrd Mat Mat Sto Rec Fac Low Low Dat Pro Fac Low Low Fac Was Fac Ext Cet Arc Hub Fac Upp Upp War Pro Res Qua Res Tes Frg Acc Traps Triggered 32 | . 1 . 4 . 1 . . . . 1 . . 1 . . 5 . . 1 . . . . . 2 1 . 2 12 1 Indirectly 1 | . . . . . . . . . . . . . . . . . . . . . . . . . . . . . 1 . Trap Hack Attempts . | . . . . . . . . . . . . . . . . . . . . . . . . . . . . . . . Triggered . | . . . . . . . . . . . . . . . . . . . . . . . . . . . . . . . Disarmed . | . . . . . . . . . . . . . . . . . . . . . . . . . . . . . . . Reprogrammed . | . . . . . . . . . . . . . . . . . . . . . . . . . . . . . . . Reused . | . . . . . . . . . . . . . . . . . . . . . . . . . . . . . . . Traps Extracted . | . . . . . . . . . . . . . . . . . . . . . . . . . . . . . . . Installed . | . . . . . . . . . . . . . . . . . . . . . . . . . . . . . . . Triggered . | . . . . . . . . . . . . . . . . . . . . . . . . . . . . . . . Machines | -11 -10 -9 -9 -9 -7 -7 -7 -7 -6 -6 -6 -6 -5 -5 -5 -5 -5 -5 -5 -4 -4 -4 -4 -3 -3 -3 -2 -2 -2 -1 ---------- Run | Yrd Mat Mat Sto Rec Fac Low Low Dat Pro Fac Low Low Fac Was Fac Ext Cet Arc Hub Fac Upp Upp War Pro Res Qua Res Tes Frg Acc Machines Disabled 129 | . 1 1 1 1 7 . . . . 13 . 2 1 . 4 3 1 . 21 17 3 . . . . 9 . 5 27 12 Max in Single Turn 7 | . 1 1 1 1 2 . . . . 5 . 1 1 . 2 1 1 . 7 5 1 . . . . 1 . 1 2 2 Garrison Access 8 | . . . 1 . 1 . . . . . . . . . . . . . . 1 . . . . 2 1 . 1 1 . Network Hub 4 | . . . . . . . . . . . . . . . . . . . 4 . . . . . . . . . . . Machines Repaired . | . . . . . . . . . . . . . . . . . . . . . . . . . . . . . . . Machines Dismantled . | . . . . . . . . . . . . . . . . . . . . . . . . . . . . . . . Machines Sabotaged . | . . . . . . . . . . . . . . . . . . . . . . . . . . . . . . . Overloaded Fab Kills . | . . . . . . . . . . . . . . . . . . . . . . . . . . . . . . . Hacking | -11 -10 -9 -9 -9 -7 -7 -7 -7 -6 -6 -6 -6 -5 -5 -5 -5 -5 -5 -5 -4 -4 -4 -4 -3 -3 -3 -2 -2 -2 -1 --------- Run | Yrd Mat Mat Sto Rec Fac Low Low Dat Pro Fac Low Low Fac Was Fac Ext Cet Arc Hub Fac Upp Upp War Pro Res Qua Res Tes Frg Acc Machines Accessed 93 | . 9 3 10 12 11 1 . 4 . 5 . . 1 . 4 4 1 . . 5 2 . . 1 1 8 2 6 2 1 Terminals 57 | . 6 2 9 6 4 . . . . 4 . . 1 . 2 4 1 . . 3 1 . . 1 . 6 2 3 1 1 Fabricators 5 | . . . . . 3 . . . . . . . . . . . . . . 1 . . . . . . . 1 . . Repair Stations 2 | . 1 . . . . . . . . . . . . . 1 . . . . . . . . . . . . . . . Recycling Units 9 | . 2 1 . 5 1 . . . . . . . . . . . . . . . . . . . . . . . . . Scanalyzers 6 | . . . . . 2 . . . . 1 . . . . 1 . . . . . . . . . . 1 . 1 . . Garrison Access 7 | . . . 1 . 1 . . . . . . . . . . . . . . 1 . . . . 1 1 . 1 1 . Total Hacks 291 | . 29 6 38 27 29 1 . 32 . 12 . . 1 . 11 8 2 . . 17 9 . . 2 5 33 9 14 3 3 Successful 159 | . 14 2 17 19 17 1 . 32 . 3 . . . . 7 3 . . . 8 9 . . 2 1 9 7 6 1 1 Failed 130 | . 15 4 20 8 11 . . . . 9 . . 1 . 4 5 2 . . 9 . . . . 4 24 2 8 2 2 Catastrophic 30 | . 2 1 2 . 2 . . . . 2 . . . . . . 2 . . 3 . . . . 2 5 1 5 2 1 Database Lockouts 2 | . . . 1 . 1 . . . . . . . . . . . . . . . . . . . . . . . . . Manual 128 | . 18 2 30 20 11 . . . . 6 . . 1 . 1 4 2 . . 9 . . . . 1 12 5 2 2 2 Terminals 181 | . 19 4 35 19 9 . . . . 9 . . 1 . 3 8 2 . . 13 8 . . 2 . 28 9 8 1 3 Fabricators 13 | . . . . . 9 . . . . . . . . . . . . . . 3 . . . . . . . 1 . . Repair Stations 7 | . 4 . . . . . . . . . . . . . 3 . . . . . . . . . . . . . . . Recycling Units 16 | . 6 2 . 6 2 . . . . . . . . . . . . . . . . . . . . . . . . . Scanalyzers 22 | . . . . . 8 . . . . 3 . . . . 5 . . . . . . . . . . 3 . 3 . . Garrison Access 16 | . . . 3 . 1 . . . . . . . . . . . . . . 1 . . . . 5 2 . 2 2 . Terminal Hacks 86 | . 2 . 8 6 2 1 . 32 . 1 . . . . 1 3 . . . 2 9 . . 2 . 7 6 2 1 1 Record 24 | . . . . . . . . 11 . . . . . . . 1 . . . . 8 . . 2 . 1 1 . . . Part Schematic 18 | . . . 1 1 1 . . 13 . . . . . . 1 . . . . . . . . . . . . 1 . . Robot Schematic 6 | . . . 1 . . . . 5 . . . . . . . . . . . . . . . . . . . . . . Robot Analysis 3 | . . . 3 . . . . . . . . . . . . . . . . . . . . . . . . . . . Prototype ID Bank 6 | . . . 1 1 . . . 3 . . . . . . . 1 . . . . . . . . . . . . . . Open Door 4 | . . . 2 . . 1 . . . . . . . . . . . . . . 1 . . . . . . . . . Branch Access Points 6 | . 1 . . . 1 . . . . 1 . . . . . . . . . 1 . . . . . . 1 . . 1 Terminal Index 2 | . 1 . . 1 . . . . . . . . . . . . . . . . . . . . . . . . . . Unreport Threat 5 | . . . . . . . . . . . . . . . . . . . . . . . . . . 2 2 1 . . Dispatch Records 1 | . . . . . . . . . . . . . . . . . . . . . . . . . . . 1 . . . Security Status 1 | . . . . . . . . . . . . . . . . . . . . . . . . . . . 1 . . . Recall Investigation 1 | . . . . . . . . . . . . . . . . . . . . . . . . . . 1 . . . . Hauler Manifests 1 | . . . . . . . . . . . . . . . . . . . . 1 . . . . . . . . . . Registered Components 1 | . . . . 1 . . . . . . . . . . . . . . . . . . . . . . . . . . Zone Layout 4 | . . . . . . . . . . . . . . . . 1 . . . . . . . . . 3 . . . . Proto ID Catalog 1 | . . . . . . . . . . . . . . . . . . . . . . . . . . . . . 1 . Release Object 2 | . . . . 2 . . . . . . . . . . . . . . . . . . . . . . . . . . Fabricator Hacks 9 | . . . . . 6 . . . . . . . . . . . . . . 2 . . . . . . . 1 . . Network Status 1 | . . . . . 1 . . . . . . . . . . . . . . . . . . . . . . . . . Load Schematic 4 | . . . . . 2 . . . . . . . . . . . . . . 1 . . . . . . . 1 . . Build 4 | . . . . . 3 . . . . . . . . . . . . . . 1 . . . . . . . . . . Repair Station Hacks 5 | . 4 . . . . . . . . . . . . . 1 . . . . . . . . . . . . . . . Scan Component 3 | . 2 . . . . . . . . . . . . . 1 . . . . . . . . . . . . . . . Repair 2 | . 2 . . . . . . . . . . . . . . . . . . . . . . . . . . . . . Recycling Unit Hacks 4 | . 2 1 . . 1 . . . . . . . . . . . . . . . . . . . . . . . . . Report Inventory 3 | . 1 1 . . 1 . . . . . . . . . . . . . . . . . . . . . . . . . Retrieve Components 1 | . 1 . . . . . . . . . . . . . . . . . . . . . . . . . . . . . Scanalyzer 12 | . . . . . 5 . . . . . . . . . 5 . . . . . . . . . . . . 2 . . Insert Component 5 | . . . . . 3 . . . . . . . . . 2 . . . . . . . . . . . . . . . Analyze 5 | . . . . . 2 . . . . . . . . . 3 . . . . . . . . . . . . . . . Retrieve Study 2 | . . . . . . . . . . . . . . . . . . . . . . . . . . . . 2 . . Garrison Access Hacks 4 | . . . 1 . 1 . . . . . . . . . . . . . . 1 . . . . . 1 . . . . Seal Access 4 | . . . 1 . 1 . . . . . . . . . . . . . . 1 . . . . . 1 . . . . Unauthorized Hacks 39 | . 6 1 8 13 2 . . . . 2 . . . . . . . . . 3 . . . . 1 1 1 1 . . Terminals 29 | . 4 1 8 8 1 . . . . 2 . . . . . . . . . 3 . . . . . 1 1 . . . Assimilate 1 | . . . . . . . . . . . . . . . . . . . . 1 . . . . . . . . . . Botnet 14 | . 1 1 2 3 1 . . . . 2 . . . . . . . . . 2 . . . . . 1 1 . . . Skim 14 | . 3 . 6 5 . . . . . . . . . . . . . . . . . . . . . . . . . . Fabricators 1 | . . . . . 1 . . . . . . . . . . . . . . . . . . . . . . . . . Fabnet 1 | . . . . . 1 . . . . . . . . . . . . . . . . . . . . . . . . . Repair Stations . | . . . . . . . . . . . . . . . . . . . . . . . . . . . . . . . Recycling Units 7 | . 2 . . 5 . . . . . . . . . . . . . . . . . . . . . . . . . . Tunnel 7 | . 2 . . 5 . . . . . . . . . . . . . . . . . . . . . . . . . . Scanalyzers . | . . . . . . . . . . . . . . . . . . . . . . . . . . . . . . . Garrison Access 2 | . . . . . . . . . . . . . . . . . . . . . . . . . 1 . . 1 . . Jam 2 | . . . . . . . . . . . . . . . . . . . . . . . . . 1 . . 1 . . Data Cores Recovered 1 | . . . . . . . . . . . . . . . . . . . . 1 . . . . . . . . . . Used . | . . . . . . . . . . . . . . . . . . . . . . . . . . . . . . . Hacking Detections 69 | . 7 3 8 6 9 . . . . 5 . . 1 . 4 4 1 . . 4 1 . . . 1 7 2 4 1 1 Full Trace Events 11 | . 2 1 1 . 3 . . . . 1 . . . . . . 1 . . 1 . . . . . . . . 1 . Feedback Events . | . . . . . . . . . . . . . . . . . . . . . . . . . . . . . . . Feedback Blocked . | . . . . . . . . . . . . . . . . . . . . . . . . . . . . . . . Robot Schematics Acquired 10 | . . . 1 . . . . 5 . . . . . . . . . . . . . . . . . 2 . . 2 . Robots Built . | . . . . . . . . . . . . . . . . . . . . . . . . . . . . . . . Authchips . | . . . . . . . . . . . . . . . . . . . . . . . . . . . . . . . Time 67 | . . . . . 67 . . . . . . . . . . . . . . . . . . . . . . . . . Total Robot Build Rating . | . . . . . . . . . . . . . . . . . . . . . . . . . . . . . . . Part Schematics Acquired 32 | . . . 1 1 3 . . 13 . . . . . . 3 . . . . . . . . . . 4 . 1 6 . Parts Built 6 | . . . . . 4 . . . . . . . . . . . . . . 2 . . . . . . . . . . Authchips . | . . . . . . . . . . . . . . . . . . . . . . . . . . . . . . . Time 106 | . . . . . 67 . . . . . . . . . . . . . . 39 . . . . . . . . . . Total Part Build Rating 24 | . . . . . 10 . . . . . . . . . . . . . . 14 . . . . . . . . . . Part Studies Acquired 2 | . . . . . . . . . . . . . . . . . . . . . . . . . . . . 2 . . Parts Repaired 2 | . 2 . . . . . . . . . . . . . . . . . . . . . . . . . . . . . Time 52 | . 52 . . . . . . . . . . . . . . . . . . . . . . . . . . . . . Parts Recycled . | . . . . . . . . . . . . . . . . . . . . . . . . . . . . . . . Recycled Matter . | . . . . . . . . . . . . . . . . . . . . . . . . . . . . . . . Retrieved Matter . | . . . . . . . . . . . . . . . . . . . . . . . . . . . . . . . Retrieved Components 9 | . 9 . . . . . . . . . . . . . . . . . . . . . . . . . . . . . Parts Scanalyzed 5 | . . . . . 3 . . . . . . . . . 2 . . . . . . . . . . . . . . . Part Schematics Acquired 4 | . . . . . 2 . . . . . . . . . 2 . . . . . . . . . . . . . . . Parts Damaged 1 | . . . . . 1 . . . . . . . . . . . . . . . . . . . . . . . . . Bothacking | -11 -10 -9 -9 -9 -7 -7 -7 -7 -6 -6 -6 -6 -5 -5 -5 -5 -5 -5 -5 -4 -4 -4 -4 -3 -3 -3 -2 -2 -2 -1 ------------ Run | Yrd Mat Mat Sto Rec Fac Low Low Dat Pro Fac Low Low Fac Was Fac Ext Cet Arc Hub Fac Upp Upp War Pro Res Qua Res Tes Frg Acc Used RIF Installer . | . . . . . . . . . . . . . . . . . . . . . . . . . . . . . . . Robots Hacked . | . . . . . . . . . . . . . . . . . . . . . . . . . . . . . . . Non-combat . | . . . . . . . . . . . . . . . . . . . . . . . . . . . . . . . Combat . | . . . . . . . . . . . . . . . . . . . . . . . . . . . . . . . Robot Hacks Applied . | . . . . . . . . . . . . . . . . . . . . . . . . . . . . . . . Relay Couplers Released 13 | . . . . . 4 . . . . 3 . . . . . . . . . 1 . . . . 2 . . . 3 . Machine Destruction 6 | . . . . . . . . . . . . . . . . . . . . 1 . . . . 2 . . . 3 . Programmers 7 | . . . . . 4 . . . . 3 . . . . . . . . . . . . . . . . . . . . Fabnet Peak Effective % . | . . . . . . . . . . . . . . . . . . . . . . . . . . . . . . . Robots Rewired 31 | . . . . 9 . . . . . . . 2 . . . 17 . . . . . 2 . . . . . . 1 . Allies Hacked 1 | . . . . . . . . . . . . . . . . . . . . 1 . . . . . . . . . . Hacks Repelled . | . . . . . . . . . . . . . . . . . . . . . . . . . . . . . . . Allies | -11 -10 -9 -9 -9 -7 -7 -7 -7 -6 -6 -6 -6 -5 -5 -5 -5 -5 -5 -5 -4 -4 -4 -4 -3 -3 -3 -2 -2 -2 -1 -------- Run | Yrd Mat Mat Sto Rec Fac Low Low Dat Pro Fac Low Low Fac Was Fac Ext Cet Arc Hub Fac Upp Upp War Pro Res Qua Res Tes Frg Acc Total Allies 43 | . . . . 9 . . . . . . . 2 . . . 23 5 . . 1 . 2 . . . . . . 1 . Largest Group 20 | . . . . 7 4 . . . . . . 2 . . . 17 20 18 1 1 . 2 2 2 . . . . 1 . Highest-Rated Group 1006 | . . . . 73 32 . . . . . . 50 . . . 646 1006 1006 89 45 . 96 96 96 . . . . 42 . Highest-Rated Ally 159 | . . . . 18 10 . . . . . . 30 . . . 159 153 153 89 45 . 49 49 49 . . . . 42 . Total Orders 5 | . . . . 2 2 . . . . . . . . . . . . . . . . . . 1 . . . . . . STAY 2 | . . . . 1 . . . . . . . . . . . . . . . . . . . 1 . . . . . . FOLLOW 1 | . . . . 1 . . . . . . . . . . . . . . . . . . . . . . . . . . TUNNEL 2 | . . . . . 2 . . . . . . . . . . . . . . . . . . . . . . . . . Ally Attacks 270 | . . . . 26 9 . . . . . . 3 . . . 114 58 41 . . . 10 . 8 . . . . 1 . Total Damage 5561 | . . . . 268 75 . . . . . . 91 . . . 2433 1097 1171 . . . 288 . 138 . . . . . . Kills 44 | . . . . 5 . . . . . . . 1 . . . 16 9 12 . . . . . 1 . . . . . . Allies Corrupted 1 | . . . . . . . . . . . . . . . . . . . . . . . . 1 . . . . . . Allies Melted . | . . . . . . . . . . . . . . . . . . . . . . . . . . . . . . . Intel | -11 -10 -9 -9 -9 -7 -7 -7 -7 -6 -6 -6 -6 -5 -5 -5 -5 -5 -5 -5 -4 -4 -4 -4 -3 -3 -3 -2 -2 -2 -1 ------- Run | Yrd Mat Mat Sto Rec Fac Low Low Dat Pro Fac Low Low Fac Was Fac Ext Cet Arc Hub Fac Upp Upp War Pro Res Qua Res Tes Frg Acc Active Infowar (turns) 16127 | 21 1344 554 317 . . . . . . . . 2 380 3 359 300 . . 57 929 2398 1557 143 1628 357 1717 749 1033 2150 129 Sensors 7221 | . . . . . . . . . . . . . . . . . . . . . 2352 1557 143 1513 334 15 . . 1307 . Zeronet 1605 | . . . . . . . . . . . . . . . . . . . . . . . . . . 1583 22 . . . Traps 1 | . . . . . . . . . . . . . . . . 1 . . . . . . . . . . . . . . Seismic 2236 | 21 1344 554 317 . . . . . . . . . . . . . . . . . . . . . . . . . . . Cloaking 555 | . . . . . . . . . . . . . . . . . . . . . . . . . . . . . 426 129 Jamming 1679 | . . . . . . . . . . . . . . . . . . . . . 44 . . 957 . . . 29 649 . ECM 3926 | . . . . . . . . . . . . 2 380 3 359 299 . . 57 929 2 . . . 23 119 749 1004 . . Robot Analysis Total 3 | . . . 3 . . . . . . . . . . . . . . . . . . . . . . . . . . . Derelict Logs Recovered 9 | . . . . . . 2 1 . 1 . 1 1 . . . . . . . . 1 2 . . . . . . . . Drone Launches . | . . . . . . . . . . . . . . . . . . . . . . . . . . . . . . . Drone Recoveries . | . . . . . . . . . . . . . . . . . . . . . . . . . . . . . . . Exploration | -11 -10 -9 -9 -9 -7 -7 -7 -7 -6 -6 -6 -6 -5 -5 -5 -5 -5 -5 -5 -4 -4 -4 -4 -3 -3 -3 -2 -2 -2 -1 ------------- Run | Yrd Mat Mat Sto Rec Fac Low Low Dat Pro Fac Low Low Fac Was Fac Ext Cet Arc Hub Fac Upp Upp War Pro Res Qua Res Tes Frg Acc Turns Passed 37060 | 115 1344 555 1351 2130 1724 829 616 175 959 1086 797 1228 454 88 1063 1840 872 100 1042 1159 2418 1992 143 1771 1362 2320 845 1519 3069 2094 Spaces Moved 17999 | 51 579 290 588 1044 1187 557 290 90 482 525 574 794 348 148 496 805 357 42 383 597 1124 986 79 823 706 1000 328 553 1374 799 Core 203 | 2 . . . 37 . . . . . . . . . 148 16 . . . . . . . . . . . . . . . Treads 3882 | 49 450 . . 402 432 . . . 300 296 . 355 . . . 103 . . 67 . 769 489 . . . . . 169 . 1 Legs 7911 | . . . . 94 755 516 290 90 182 . 1 439 348 . 244 530 357 42 276 289 355 . . . 1 921 328 195 860 798 Wheels 3968 | . 129 290 588 511 . . . . . . 467 . . . . 48 . . . . . 497 79 823 392 . . 7 137 . Hover 462 | . . . . . . . . . . . . . . . . . . . . . . . . . 85 . . . 377 . Flight 1573 | . . . . . . 41 . . . 229 106 . . . 236 124 . . 40 308 . . . . 228 79 . 182 . . Fastest Speed 50 | 50 160 135 135 80 93 93 112 189 139 87 87 91 91 50 50 157 159 206 95 82 183 183 183 183 131 64 200 149 77 75 Average Speed 154 | 155 168 139 171 169 105 109 184 189 166 148 104 126 100 50 180 177 185 206 190 142 183 183 183 183 166 191 200 204 123 80 Slowest Speed 251 | 160 200 140 215 217 118 135 189 189 221 199 130 169 235 50 235 251 206 206 206 199 183 183 183 183 183 236 200 239 218 230 Overloaded Moves . | . . . . . . . . . . . . . . . . . . . . . . . . . . . . . . . Propulsion Burnouts . | . . . . . . . . . . . . . . . . . . . . . . . . . . . . . . . Robots Hopped 1 | . . . . . . . . . . . . . . . . . . . 1 . . . . . . . . . . . Potential Cave-ins 51 | . . . . . . . . . . . . . . . 3 . . . 1 . . . . . 6 . . . 38 3 Cave-ins Triggered 3 | . . . . . . . . . . . . . . . . . . . . . . . . . . . . . 2 1 Teleports 1 | . . . . . . . . . . . . . . . . . . . . . . . . . . . . . 1 . Exploration Rate (%) 53 | 4 87 31 84 98 29 69 42 69 72 19 64 73 10 84 16 83 71 73 38 19 97 94 14 83 24 83 13 56 29 19 Regions Visited 30 Branch Regions 19 Pre-discovered Areas 14 | . 2 . 4 6 . 1 . 1 . . . . . . . . . . . . . . . . . . . . . . Known Exits Taken 12 | . . 1 1 . 1 . . . . 1 . . . . 1 . . . . 1 1 1 1 1 1 . 1 . . . Unknown Exits Taken 16 | 1 1 . . 1 . 1 1 1 1 . 1 1 . . . 1 1 1 1 . . . . . . 1 . 1 1 . Scrap Searched 20 | . . . . . . 2 2 . . . 3 5 . . . . . . . . 3 3 . 2 . . . . . . Spaces Dug 378 | . . . 4 2 52 . . . 2 19 4 . 7 . 35 2 . . 20 10 14 6 . 16 27 15 19 11 82 31 Terrain Destroyed 2055 | . . . 7 2 160 11 2 . 6 156 27 25 8 . 38 28 6 . 700 161 41 35 . 37 37 33 48 25 216 246 Melee 10 | . . . 4 . . . . . . . . . . . 3 . . . . 3 . . . . . . . . . . Projectile 934 | . . . . 2 33 11 2 . 6 31 27 14 8 . 20 28 6 . 52 48 36 35 . 37 32 33 48 25 201 199 AOE 1109 | . . . 3 . 127 . . . . 125 . 11 . . 15 . . . 648 110 5 . . . 5 . . . 13 47 Terrain Rammed . | . . . . . . . . . . . . . . . . . . . . . . . . . . . . . . . Walls Destroyed . | . . . . . . . . . . . . . . . . . . . . . . . . . . . . . . . Machines Disabled . | . . . . . . . . . . . . . . . . . . . . . . . . . . . . . . . Actions | -11 -10 -9 -9 -9 -7 -7 -7 -7 -6 -6 -6 -6 -5 -5 -5 -5 -5 -5 -5 -4 -4 -4 -4 -3 -3 -3 -2 -2 -2 -1 --------- Run | Yrd Mat Mat Sto Rec Fac Low Low Dat Pro Fac Low Low Fac Was Fac Ext Cet Arc Hub Fac Upp Upp War Pro Res Qua Res Tes Frg Acc Total 25258 | 69 780 376 800 1370 1540 689 355 97 590 724 732 965 441 165 615 1171 561 56 573 843 1413 1095 78 1013 857 1319 476 916 2469 2110 Wait 3962 | 1 92 19 92 187 167 54 48 3 62 75 96 77 64 7 53 125 150 15 53 125 210 27 . 122 63 122 39 251 558 1005 Move 17964 | 50 578 289 587 1043 1186 556 289 89 481 524 573 793 348 147 495 804 356 41 380 596 1123 985 78 822 705 999 327 552 1371 797 Hop 1 | . . . . . . . . . . . . . . . . . . . 1 . . . . . . . . . . . Pick Up 280 | 3 11 14 12 8 30 7 2 1 . 8 8 7 7 3 . 23 13 . 3 19 9 1 . 5 12 23 4 10 30 7 Fast Attach 87 | 7 1 . 6 1 3 . . . . 1 . 2 2 . 7 5 3 . . 2 . . . . 3 4 2 6 25 7 Attach 116 | . 1 4 8 1 9 1 1 . 2 5 4 5 1 . 1 . . . 6 6 . . . . 5 15 6 6 22 7 Detach 69 | . . . 2 1 8 1 . . . 2 3 3 . 3 3 . 2 . 2 3 . . . . 5 5 2 3 18 3 Swap 183 | . 9 11 15 2 7 . . . . 3 3 3 2 . 4 3 4 . 2 9 11 15 . 15 5 17 4 8 24 7 Drop 249 | . 2 8 16 20 21 . 1 4 2 4 6 3 2 5 4 8 17 . 5 12 8 5 . . 14 19 4 13 35 11 Fire 1998 | 8 86 30 53 23 109 70 14 . 43 102 39 46 14 . 43 52 16 . 120 68 52 58 . 49 45 113 82 66 338 259 Melee 32 | . . 1 9 . . . . . . . . . . . 5 . . . . 3 . . . . . 2 6 1 2 3 Ram . | . . . . . . . . . . . . . . . . . . . . . . . . . . . . . . . Kick 2 | . . . . . . . . . . . . . 1 . . . . . 1 . . . . . . . . . . . Crush . | . . . . . . . . . . . . . . . . . . . . . . . . . . . . . . . Escape Stasis 72 | . . . . . . . . . . . . . . . . 25 . . . . . . . . . . . . 43 4 Rewire 243 | . . . . 84 . . . . . . . 26 . . . 126 . . . . . 4 . . . . . . 3 . Trap . | . . . . . . . . . . . . . . . . . . . . . . . . . . . . . . . Miscellaneous . | . . . . . . . . . . . . . . . . . . . . . . . . . . . . . . . Route ------- -11/Scrapyard -10/Materials (discovered 5 exits: *Mat x2 / *Min x2 / [*Sub]) -9/Materials (discovered 2 exits: [*Min] / *Sto) -9/Storage (discovered 2 exits: [*Mat] / *Rec) -9/Recycling -7/Factory (discovered 2 exits: *Low x2) -7/Lower Caves -7/Lower Caves -7/Data Miner -6/Proximity Caves -6/Factory (discovered 2 exits: *Low x2) -6/Lower Caves -6/Lower Caves -5/Factory (discovered 3 exits: *Fac / Upp / Ext) -5/Waste -5/Factory (discovered 3 exits: *Fac / *Upp / *Ext) -5/Extension (discovered 2 exits: *Fac / *Cet) -5/Cetus (discovered 2 exits: *Fac / [*Arc]) -5/Archives -5/Hub_04(d) -4/Factory (discovered 4 exits: *Res / *Upp x2 / Arm) -4/Upper Caves -4/Upper Caves (discovered 2 exits: *Res / *War) -4/Warlord -3/Proximity Caves -3/Research (discovered 3 exits: *Res / *Qua x2) -3/Quarantine -2/Research (discovered 2 exits: *Tes x2) -2/Testing (discovered 2 exits: [*Sec] / *Frg) -2/Protoforge -1/Access (discovered 2 exits: [*Sur] / *Com) To Fleet Rendezvous History --------- Turn | Location | Event 27 | -11/Scrapyard | Discovered new exit (range 15) 116 | -11/Scrapyard | Entered Materials 218 | -10/Materials | Discovered new exit (range 11) 300 | -10/Materials | Build established: Mutant 430 | -10/Materials | Repaired Lgt. Treads 457 | -10/Materials | Repaired Assault Rifle 526 | -10/Materials | Discovered new exit (range 14) 673 | -10/Materials | Discovered new exit (range 16) 858 | -10/Materials | Identified exit to Mines 874 | -10/Materials | Discovered new exit (range 9) 1460 | -10/Materials | Entered another Materials area 1460 | -9/Materials | Evolved 2 slots: Propulsion x1, Weapon x1 1804 | -9/Materials | Build established: Gunner 1817 | -9/Materials | Discovered new exit (range 16) 1855 | -9/Materials | Discovered new exit (range 3) 1926 | -9/Materials | Identified exit to Storage 2015 | -9/Materials | Entered Storage 2096 | -9/Storage | Found Prototype Launcher 2104 | -9/Storage | Identified Gui. EMP Blaster 2585 | -9/Storage | Discovered new exit (range 9) 2763 | -9/Storage | Central database locked down 2950 | -9/Storage | Learned location of Mines (-9) 3028 | -9/Storage | Learned 8 Materials zone layouts 3050 | -9/Storage | Identified exit to Recycling 3081 | -9/Storage | Learned location of Zion (-6) 3121 | -9/Storage | Learned location of 2 exits from Materials 3173 | -9/Storage | Learned Materials stockpile data 3231 | -9/Storage | Build established: Scavenger-Tank 3358 | -9/Storage | Used back door to open Recycling access 3366 | -9/Storage | Entered Recycling 3410 | -9/Recycling | Core integrity fell below 50% 3841 | -9/Recycling | Build established: Commander-Tank 3994 | -9/Recycling | Learned Storage emergency access door positions 4042 | -9/Recycling | Loaded intel: 5 recycling unit locations 4056 | -9/Recycling | Discovered new exit (range 8) 4161 | -9/Recycling | Learned Materials stockpile data 4202 | -9/Recycling | Build established: Scavenger-Tank 4243 | -9/Recycling | Learned Recycling recycling unit intel 4313 | -9/Recycling | Scanned before Scraplab entrance 4348 | -9/Recycling | Angered Scraplab inhabitants 4426 | -9/Recycling | Lost 4 allies 4472 | -9/Recycling | Found Prototype Device 4473 | -9/Recycling | Identified Scrap Engine 4922 | -9/Recycling | Build established: Construct 5259 | -9/Recycling | Build established: Commander-Construct 5496 | -9/Recycling | Entered Factory 5496 | -7/Factory | Accompanied by 4 allies 5496 | -7/Factory | Evolved 4 slots: Power x1, Utility x2, Weapon x1 5707 | -7/Factory | Fabricated Plasma Cutter (x2) 5835 | -7/Factory | Build established: Construct 6234 | -7/Factory | Discovered new exit (range 10) 6669 | -7/Factory | Identified exit to Lower Caves 6850 | -7/Factory | Central database locked down 7029 | -7/Factory | Fabricated Cryofiber Web (x2) 7096 | -7/Factory | First assault squad dispatched 7220 | -7/Factory | Entered Lower Caves 7945 | -7/Lower Caves | Attracted the attention of an 0b10 outpost 8031 | -7/Lower Caves | Discovered new exit (range 7) 8038 | -7/Lower Caves | Learned 8 Factory zone layouts 8049 | -7/Lower Caves | Entered another Lower Caves area 8058 | -7/Lower Caves | Attracted the attention of an 0b10 checkpoint 8073 | -7/Lower Caves | Learned 4 Factory zone layouts 8146 | -7/Lower Caves | Lost 3 parts (1p1n1u) 8571 | -7/Lower Caves | Discovered new exit (range 15) 8665 | -7/Lower Caves | Entered Data Miner 8665 | -7/Data Miner | Discovered new exit (range 6) 8702 | -7/Data Miner | Met Data Miner 8738 | -7/Data Miner | Learned location of Section 7 (-2) 8738 | -7/Data Miner | Acquired the access code to Warlord's prototype stash 8770 | -7/Data Miner | Received God Mode back door access code from Data Miner 8840 | -7/Data Miner | Entered Proximity Caves 9082 | -6/Proximity Caves | Attracted the attention of an 0b10 checkpoint 9442 | -6/Proximity Caves | Core integrity fell below 50% 9661 | -6/Proximity Caves | Learned Factory terminal intel 9791 | -6/Proximity Caves | Discovered new exit (range 4) 9799 | -6/Proximity Caves | Entered Factory 9799 | -6/Factory | Evolved 2 slots: Utility x2 9801 | -6/Factory | Loaded intel: 26 terminal locations 9943 | -6/Factory | Incoming investigation squad redirected 9977 | -6/Factory | Identified exit to Lower Caves 9977 | -6/Factory | Watched by a mysterious "MATRIX" hacker. 10849 | -6/Factory | First assault squad dispatched 10878 | -6/Factory | Incoming assault squad redirected 10885 | -6/Factory | Entered Lower Caves 11331 | -6/Lower Caves | Found Imp. Powered Armor 11417 | -6/Lower Caves | Encountered a Warlord checkpoint 11489 | -6/Lower Caves | Discovered new exit (range 9) 11530 | -6/Lower Caves | Learned location of 1 exit from Factory 11617 | -6/Lower Caves | Attracted the attention of an 0b10 checkpoint 11682 | -6/Lower Caves | Entered another Lower Caves area 11842 | -6/Lower Caves | Attracted the attention of an 0b10 outpost 12253 | -6/Lower Caves | Learned location of 1 exit from Factory 12318 | -6/Lower Caves | Attacked by a delusional Derelict stockpiling parts 12889 | -6/Lower Caves | Discovered new exit (range 9) 12910 | -6/Lower Caves | Entered Factory 12910 | -5/Factory | Evolved 2 slots: Propulsion x1, Utility x1 12911 | -5/Factory | Identified exit to Upper Caves 12911 | -5/Factory | Identified exit to Extension 12977 | -5/Factory | Discovered new exit (range 14) 13364 | -5/Factory | Sucked down chute 13364 | -5/Factory | Entered Waste 13385 | -5/Waste | Spotted C-40 Crusher 13407 | -5/Waste | Spotted C-40 Crusher 13407 | -5/Waste | Spotted C-40 Crusher 13416 | -5/Waste | Spotted C-40 Crusher 13417 | -5/Waste | Spotted C-40 Crusher 13421 | -5/Waste | Spotted C-40 Crusher 13445 | -5/Waste | Discovered new exit (range 11) 13452 | -5/Waste | Entered Factory 13767 | -5/Factory | Discovered exit to Upper Caves (range 15) 14178 | -5/Factory | Discovered new exit (range 5) 14501 | -5/Factory | Discovered exit to Extension (range 9) 14515 | -5/Factory | Entered Extension 14632 | -5/Extension | Rescued a captive Derelict 14633 | -5/Extension | Rescued a captive Derelict 14653 | -5/Extension | Rescued a captive Derelict 14655 | -5/Extension | Rescued a captive Derelict 15186 | -5/Extension | Rescued A7 15571 | -5/Extension | Spotted B-75 Beast 15591 | -5/Extension | Allies destroyed B-75 Beast 15594 | -5/Extension | Spotted B-75 Beast 15612 | -5/Extension | Allies destroyed B-75 Beast 15637 | -5/Extension | Lost 3 allies 15909 | -5/Extension | Rescued a captive Derelict 16073 | -5/Extension | Build established: Commander-Construct 16278 | -5/Extension | Discovered new exit (range 10) 16279 | -5/Extension | Discovered new exit (range 6) 16355 | -5/Extension | Entered Cetus 16355 | -5/Cetus | Accompanied by 17 allies (A7) 16360 | -5/Cetus | Acquired a Cetus Manufacturing Module code from A7 16375 | -5/Cetus | Spotted Cetus Guard 16375 | -5/Cetus | Spotted Cetus Guard 16379 | -5/Cetus | Spotted Cetus Guard 16379 | -5/Cetus | Allies destroyed Cetus Guard 16380 | -5/Cetus | Allies destroyed Cetus Guard 16380 | -5/Cetus | Spotted Cetus Guard 16384 | -5/Cetus | Destroyed Cetus Guard 16386 | -5/Cetus | Allies destroyed Cetus Guard 16514 | -5/Cetus | Started Cetus Manufacturing Module 16539 | -5/Cetus | Manufactured an Enhanced Grunt 16539 | -5/Cetus | Escorted A7 to Cetus Mainframe 16561 | -5/Cetus | Discovered new exit (range 16) 16564 | -5/Cetus | Manufactured an Enhanced Grunt 16589 | -5/Cetus | Manufactured an Enhanced Grunt 16589 | -5/Cetus | Spotted Cetus Guard 16589 | -5/Cetus | Spotted Cetus Guard 16591 | -5/Cetus | Destroyed Cetus Guard 16592 | -5/Cetus | Spotted Cetus Guard 16593 | -5/Cetus | Spotted Cetus Guard 16602 | -5/Cetus | Allies destroyed Cetus Guard 16603 | -5/Cetus | Destroyed Cetus Guard 16610 | -5/Cetus | Allies destroyed Cetus Guard 16614 | -5/Cetus | Manufactured an Enhanced Grunt 16620 | -5/Cetus | Discovered new exit (range 15) 16628 | -5/Cetus | Met Revision 17 16631 | -5/Cetus | Lost 4 allies 16639 | -5/Cetus | Manufactured an Enhanced Grunt 17105 | -5/Cetus | Security sweep announced 17227 | -5/Cetus | Entered Archives 17227 | -5/Archives | Accompanied by 18 allies (A7) 17232 | -5/Archives | Received a hacking code to weaken MAIN.C 17256 | -5/Archives | Met Zhirov 17262 | -5/Archives | Reinforcements dispatched to Archives 17277 | -5/Archives | Discovered new exit (range 16) 17307 | -5/Archives | Reinforcements dispatched to Archives 17324 | -5/Archives | Lost 3 allies 17327 | -5/Archives | Zhirov detonated Archives 17327 | -5/Archives | Entered Hub_04(d) 17327 | -5/Hub_04(d) | Accompanied by 1 ally 17358 | -5/Hub_04(d) | Lost 12 allies 17620 | -5/Hub_04(d) | Found Exp. Targeting Computer 17641 | -5/Hub_04(d) | Build established: Construct 17796 | -5/Hub_04(d) | Discovered new exit (range 16) 17862 | -5/Hub_04(d) | Network Hub disabled 17869 | -5/Hub_04(d) | Spotted Lightning 17884 | -5/Hub_04(d) | Destroyed Lightning 17886 | -5/Hub_04(d) | Spotted Lightning 17888 | -5/Hub_04(d) | Spotted Lightning 17914 | -5/Hub_04(d) | Destroyed Lightning 17996 | -5/Hub_04(d) | Spotted B-75 Beast 18001 | -5/Hub_04(d) | Destroyed B-75 Beast 18103 | -5/Hub_04(d) | Network Hub disabled 18104 | -5/Hub_04(d) | System corruption reached 10% 18123 | -5/Hub_04(d) | Spotted Lightning 18123 | -5/Hub_04(d) | Spotted Lightning 18133 | -5/Hub_04(d) | Destroyed Lightning 18170 | -5/Hub_04(d) | Destroyed Lightning 18176 | -5/Hub_04(d) | Lost 3 parts (1p1u1w) 18227 | -5/Hub_04(d) | First assault squad dispatched 18243 | -5/Hub_04(d) | Incoming assault squad redirected 18285 | -5/Hub_04(d) | Network Hub disabled 18291 | -5/Hub_04(d) | Network Hub disabled 18291 | -5/Hub_04(d) | Spotted Lightning 18303 | -5/Hub_04(d) | System corruption reached 30% 18326 | -5/Hub_04(d) | Spotted Lightning 18327 | -5/Hub_04(d) | Spotted Lightning 18369 | -5/Hub_04(d) | Entered Factory 18369 | -4/Factory | Evolved 2 slots: Propulsion x1, Utility x1 18619 | -4/Factory | First assault squad dispatched 18986 | -4/Factory | Fabricated Adv. Cryofiber Web (x2) 19134 | -4/Factory | Destroyed 8 combat bots 19204 | -4/Factory | Identified exit to Upper Caves 19204 | -4/Factory | Identified exit to Armory 19251 | -4/Factory | Discovered new exit (range 8) 19297 | -4/Factory | Destroyed 8 combat bots 19348 | -4/Factory | Found Quantum Capacitor 19528 | -4/Factory | Entered Upper Caves 19529 | -4/Upper Caves | Encountered a Warlord checkpoint 20201 | -4/Upper Caves | Discovered new exit (range 15) 20472 | -4/Upper Caves | Learned Research stockpile data 20516 | -4/Upper Caves | Attracted the attention of an 0b10 base 20554 | -4/Upper Caves | Destroyed 10 combat bots 20573 | -4/Upper Caves | Learned Extension stockpile data 20573 | -4/Upper Caves | Learned Research security intel 20573 | -4/Upper Caves | Learned Armory terminal intel 20573 | -4/Upper Caves | Learned Extension garrison access intel 20858 | -4/Upper Caves | Identified exit to Upper Caves 21095 | -4/Upper Caves | Attracted the attention of an 0b10 checkpoint 21946 | -4/Upper Caves | Entered another Upper Caves area 22078 | -4/Upper Caves | Attracted the attention of an 0b10 checkpoint 22606 | -4/Upper Caves | Attracted the attention of an 0b10 outpost 23057 | -4/Upper Caves | Discovered new exit (range 8) 23067 | -4/Upper Caves | Identified exit to Warlord 23402 | -4/Upper Caves | Learned Research stockpile data 23521 | -4/Upper Caves | Discovered new exit (range 15) 23547 | -4/Upper Caves | Identified exit to Research 23938 | -4/Upper Caves | Entered Warlord 23938 | -4/Warlord | Accompanied by 2 allies 24017 | -4/Warlord | System corruption cleaned by Quarantine Array 24067 | -4/Warlord | Discovered new exit (range 9) 24079 | -4/Warlord | Identified exit to Proximity Caves 24081 | -4/Warlord | Entered Proximity Caves 24081 | -3/Proximity Caves | Accompanied by 2 allies 24469 | -3/Proximity Caves | Spotter reported a threat 24560 | -3/Proximity Caves | Spotter reported a threat 25229 | -3/Proximity Caves | Spotted B-86 Titan 25252 | -3/Proximity Caves | Destroyed B-86 Titan 25411 | -3/Proximity Caves | Spotter reported a threat 25422 | -3/Proximity Caves | Ambushed by research squad 25475 | -3/Proximity Caves | Spotter reported a threat 25638 | -3/Proximity Caves | Discovered exit to Research (range 15) 25852 | -3/Proximity Caves | Entered Research 25852 | -3/Research | Evolved 2 slots: Utility x1, Weapon x1 25853 | -3/Research | Identified exit to Quarantine 26052 | -3/Research | Revision forces began assault on 0b10 26080 | -3/Research | Found Gamma Bomb Array 26185 | -3/Research | Met up with Revision 17++ 26288 | -3/Research | Spotted B-86 Titan 26301 | -3/Research | Destroyed B-86 Titan 26552 | -3/Research | Research terminal network offline 26576 | -3/Research | Discovered new exit (range 13) 27080 | -3/Research | Discovered exit to Quarantine (range 15) 27214 | -3/Research | Entered Quarantine 27418 | -3/Quarantine | Unchained authorized (DW-4LL) 27562 | -3/Quarantine | Found Alien Slashing Weapon 27562 | -3/Quarantine | Identified Sigix Broadsword 27614 | -3/Quarantine | Found Alien Artifact 27871 | -3/Quarantine | DW-4LL burst out of a wall 27876 | -3/Quarantine | System corruption reached 10% 27883 | -3/Quarantine | Destroyed DW-4LL 27905 | -3/Quarantine | Found Prototype Ballistic Gun 27911 | -3/Quarantine | Identified DW-4LL's Slamshotty 27923 | -3/Quarantine | Found Prototype Processor 27924 | -3/Quarantine | Identified Exp. Armor Integrity Analyzer 27939 | -3/Quarantine | Found Prototype Device 27943 | -3/Quarantine | Identified Exp. Weapon Cycler 27950 | -3/Quarantine | Found Prototype Processor 27951 | -3/Quarantine | Identified Zeronet Interface 27957 | -3/Quarantine | Found Prototype Protection 27963 | -3/Quarantine | Found Prototype Treads 28212 | -3/Quarantine | Build established: Scavenger-Construct 28504 | -3/Quarantine | Found Alien Energy Cannon 28521 | -3/Quarantine | Discovered new exit (range 7) 28631 | -3/Quarantine | Identified DW-4LL's Blast Wall 28766 | -3/Quarantine | Spotted Alpha 7 28798 | -3/Quarantine | Destroyed Alpha 7 29080 | -3/Quarantine | Found Alien Artifact 29081 | -3/Quarantine | Identified Terrabomb 29081 | -3/Quarantine | Used Terrabomb 29100 | -3/Quarantine | Found Terrabomb 29100 | -3/Quarantine | Used Terrabomb 29128 | -3/Quarantine | Found Alien Artifact 29299 | -3/Quarantine | Found Alien Artifact 29306 | -3/Quarantine | Found Alien Artifact 29388 | -3/Quarantine | Build established: Construct 29534 | -3/Quarantine | Entered Research 29534 | -2/Research | Evolved 2 slots: Propulsion x1, Utility x1 29647 | -2/Research | Identified exit to Testing 29743 | -2/Research | Build established: Scavenger-Construct 29789 | -2/Research | Spotted B-90 Cyclops 29795 | -2/Research | Destroyed B-90 Cyclops 29982 | -2/Research | Destroyed 7 combat bots 30284 | -2/Research | First assault squad dispatched 30311 | -2/Research | Incoming assault squad redirected 30379 | -2/Research | Entered Testing 30457 | -2/Testing | Found Prototype Energy Cannon 30743 | -2/Testing | Build established: Construct 30960 | -2/Testing | Found Prototype Launcher 30988 | -2/Testing | Garrison activated, responded to threat 31227 | -2/Testing | Found Prototype Energy Gun 31232 | -2/Testing | Identified Warp Gun 31262 | -2/Testing | System corruption reached 10% 31411 | -2/Testing | Found Prototype Device 31411 | -2/Testing | Identified Thermal Barrier 31731 | -2/Testing | Spotted Fortress 31889 | -2/Testing | Discovered new exit (range 6) 31889 | -2/Testing | Discovered new exit (range 5) 31898 | -2/Testing | Entered Protoforge 31918 | -2/Protoforge | Identified Core Reset Matrix 31918 | -2/Protoforge | Identified Hpw. Transdimensional Reconstructor 31918 | -2/Protoforge | Identified Core Cannon 31918 | -2/Protoforge | Identified Subatomic Replicator 31918 | -2/Protoforge | Identified Transdimensional Reconstructor 31918 | -2/Protoforge | Used Core Reset Matrix 31922 | -2/Protoforge | Sensed 2 artifacts in vicinity 31987 | -2/Protoforge | Spotted Hotshot 31987 | -2/Protoforge | Spotted Hotshot 31988 | -2/Protoforge | Spotted Hotshot 31995 | -2/Protoforge | Destroyed Hotshot 32019 | -2/Protoforge | Destroyed Hotshot 32023 | -2/Protoforge | Destroyed Hotshot 32058 | -2/Protoforge | Spotted Hotshot 32071 | -2/Protoforge | Spotted Hotshot 32224 | -2/Protoforge | Spotted Hotshot 32224 | -2/Protoforge | Spotted Hotshot 32224 | -2/Protoforge | Spotted Hotshot 32230 | -2/Protoforge | Spotted Hotshot 32240 | -2/Protoforge | Destroyed Hotshot 32242 | -2/Protoforge | Destroyed Hotshot 32254 | -2/Protoforge | Destroyed Hotshot 32285 | -2/Protoforge | Destroyed Hotshot 32304 | -2/Protoforge | Superfortress began startup sequence 32398 | -2/Protoforge | First assault squad dispatched 32459 | -2/Protoforge | Identified Z-bomb Delivery System 32538 | -2/Protoforge | Destroyed 11 combat bots 32603 | -2/Protoforge | Additional patrols dispatched to research labs 32616 | -2/Protoforge | Crushed by falling debris 32645 | -2/Protoforge | Found Prototype Device 32646 | -2/Protoforge | Identified Crosscalibrator 32656 | -2/Protoforge | Destroyed Hotshot 32659 | -2/Protoforge | Spotted Hotshot 32663 | -2/Protoforge | Spotted Hotshot 32663 | -2/Protoforge | Destroyed Hotshot 32666 | -2/Protoforge | Spotted Hotshot 32672 | -2/Protoforge | Spotted Immortal 32673 | -2/Protoforge | Destroyed Hotshot 32675 | -2/Protoforge | Destroyed Hotshot 32676 | -2/Protoforge | Spotted Immortal 32680 | -2/Protoforge | Spotted Immortal 32689 | -2/Protoforge | Destroyed Immortal 32695 | -2/Protoforge | Destroyed Immortal 32703 | -2/Protoforge | Destroyed Immortal 32724 | -2/Protoforge | Destroyed 8 combat bots 32818 | -2/Protoforge | Spotted V632-e 32818 | -2/Protoforge | Spotted V358-u 32818 | -2/Protoforge | Spotted V329-l 32818 | -2/Protoforge | Spotted V931-x 32888 | -2/Protoforge | Found Prototype Processor 32888 | -2/Protoforge | Identified Exp. Melee Analysis Suite 32892 | -2/Protoforge | Found Exp. Melee Analysis Suite 32942 | -2/Protoforge | Spotted Immortal 32942 | -2/Protoforge | Spotted Immortal 32992 | -2/Protoforge | Spotted Decapitator 32992 | -2/Protoforge | Spotted Decapitator 32992 | -2/Protoforge | Spotted Decapitator 32992 | -2/Protoforge | Spotted Decapitator 33019 | -2/Protoforge | Destroyed Immortal 33030 | -2/Protoforge | Destroyed Immortal 33037 | -2/Protoforge | Destroyed Decapitator 33037 | -2/Protoforge | Destroyed Decapitator 33037 | -2/Protoforge | Destroyed Decapitator 33047 | -2/Protoforge | Destroyed Decapitator 33125 | -2/Protoforge | Found Mni. Quantum Capacitor 33128 | -2/Protoforge | Identified Potential Cannon 33140 | -2/Protoforge | Found Cep. Weapon Articulator 33325 | -2/Protoforge | Build established: Scavenger-Construct 33553 | -2/Protoforge | Destroyed 8 combat bots 33695 | -2/Protoforge | Spotted Decapitator 33695 | -2/Protoforge | Spotted Decapitator 33695 | -2/Protoforge | Spotted V525-g 33704 | -2/Protoforge | Destroyed Decapitator 33706 | -2/Protoforge | Spotted V808-x 33712 | -2/Protoforge | Destroyed V525-g 33726 | -2/Protoforge | Destroyed V808-x 33747 | -2/Protoforge | Destroyed 7 combat bots 33848 | -2/Protoforge | Found Prototype Ballistic Cannon 33848 | -2/Protoforge | Identified Cep. Miniperforator 33860 | -2/Protoforge | Found Faulty Cep. Miniperforator 34020 | -2/Protoforge | Found Cep. Heavy Railcannon 34063 | -2/Protoforge | Found Cep. Helical Railcannon 34066 | -2/Protoforge | Found Cep. Helical Railcannon 34112 | -2/Protoforge | Found Cep. Variable Chargecaster 34119 | -2/Protoforge | Found Cep. Variable Chargecaster 34219 | -2/Protoforge | Destroyed 7 combat bots 34343 | -2/Protoforge | Found Prototype Protection 34343 | -2/Protoforge | Identified Cep. Core Shell 34346 | -2/Protoforge | Found Prototype Device 34346 | -2/Protoforge | Identified Exp. Remote Shield 34349 | -2/Protoforge | Found Prototype Device 34349 | -2/Protoforge | Identified Exp. EM Disruption Field 34353 | -2/Protoforge | Found Prototype Device 34353 | -2/Protoforge | Identified Cep. Energy Mantle 34356 | -2/Protoforge | Found Prototype Device 34356 | -2/Protoforge | Identified Cep. Reaction Jets 34373 | -2/Protoforge | Found Prototype Protection 34373 | -2/Protoforge | Identified Cep. RG22 Armor 34406 | -2/Protoforge | Spotted AP7-3 34406 | -2/Protoforge | Spotted AP7-3 34416 | -2/Protoforge | Destroyed AP7-3 34430 | -2/Protoforge | Destroyed AP7-3 34451 | -2/Protoforge | System corruption reached 30% 34464 | -2/Protoforge | Found Cep. Thermoelectric Network 34468 | -2/Protoforge | Found Prototype Device 34468 | -2/Protoforge | Identified Cep. Cloak Mesh 34472 | -2/Protoforge | Found Cep. Thermoelectric Network 34490 | -2/Protoforge | Found Cep. Cloak Mesh 34502 | -2/Protoforge | Warped through subspace 34563 | -2/Protoforge | Found Faulty Cep. RG22 Armor 34571 | -2/Protoforge | Destroyed 12 combat bots 34590 | -2/Protoforge | Spotted V070-g 34603 | -2/Protoforge | Destroyed V070-g 34652 | -2/Protoforge | Build established: Construct 34661 | -2/Protoforge | Destroyed 10 combat bots 34690 | -2/Protoforge | Found Prototype Energy Gun 34690 | -2/Protoforge | Identified Cep. Lightning Penetrator 34693 | -2/Protoforge | Found Faulty Cep. Variable Chargecaster 34696 | -2/Protoforge | Found Cep. Variable Chargecaster 34783 | -2/Protoforge | Crushed by falling debris 34925 | -2/Protoforge | Discovered new exit (range 14) 34952 | -2/Protoforge | Destroyed 8 combat bots 34967 | -2/Protoforge | Entered Access 34967 | -1/Access | Evolved 2 slots: Utility x2 34969 | -1/Access | Used Subatomic Replicator to replicate Cep. Energy Mantle 35122 | -1/Access | Destroyed 7 combat bots 35217 | -1/Access | First assault squad dispatched 35265 | -1/Access | Identified exit to Command 35528 | -1/Access | Build established: Scavenger-Construct 35737 | -1/Access | High security lockdown imminent 35817 | -1/Access | High security lockdown engaged 35948 | -1/Access | Destroyed 16 combat bots 36019 | -1/Access | Spotted Investigator 36020 | -1/Access | Destroyed Investigator 36056 | -1/Access | Destroyed 25 combat bots 36193 | -1/Access | Spotted Executioner 36193 | -1/Access | Spotted Striker 36193 | -1/Access | Spotted Striker 36194 | -1/Access | Destroyed Striker 36194 | -1/Access | Destroyed Executioner 36197 | -1/Access | Destroyed Striker 36218 | -1/Access | Destroyed 20 combat bots 36224 | -1/Access | Spotted Striker 36224 | -1/Access | Spotted Executioner 36230 | -1/Access | Destroyed Striker 36234 | -1/Access | Destroyed Executioner 36239 | -1/Access | Spotted Striker 36241 | -1/Access | Destroyed Striker 36253 | -1/Access | Spotted Executioner 36253 | -1/Access | Spotted Executioner 36256 | -1/Access | Destroyed Executioner 36260 | -1/Access | Destroyed Executioner 36281 | -1/Access | Destroyed 7 combat bots 36366 | -1/Access | Spotted Investigator 36371 | -1/Access | Scanned by Researcher 36372 | -1/Access | Destroyed Investigator 36382 | -1/Access | Spotted Executioner 36382 | -1/Access | Destroyed Executioner 36396 | -1/Access | Spotted Striker 36398 | -1/Access | Destroyed Striker 36419 | -1/Access | Destroyed 11 combat bots 36454 | -1/Access | Sterilization system engaged 36492 | -1/Access | Spotted Executioner 36493 | -1/Access | Spotted Executioner 36493 | -1/Access | Spotted Executioner 36494 | -1/Access | Destroyed Executioner 36495 | -1/Access | Destroyed Executioner 36497 | -1/Access | Destroyed Executioner 36500 | -1/Access | Spotted Striker 36500 | -1/Access | Spotted Striker 36509 | -1/Access | Destroyed Striker 36517 | -1/Access | Destroyed Striker 36538 | -1/Access | Destroyed 7 combat bots 36549 | -1/Access | Spotted Striker 36549 | -1/Access | Spotted Striker 36549 | -1/Access | Spotted Striker 36552 | -1/Access | Destroyed Striker 36558 | -1/Access | Destroyed Striker 36561 | -1/Access | Destroyed Striker 36682 | -1/Access | Destroyed 7 combat bots 36754 | -1/Access | Ambient heat levels rising (+10) 36865 | -1/Access | Spotted Executioner 36865 | -1/Access | Spotted Striker 36865 | -1/Access | Crushed by falling debris 36870 | -1/Access | Destroyed Executioner 36877 | -1/Access | Destroyed Striker 36904 | -1/Access | Ambient heat levels rising (+10) 36907 | -1/Access | Spotted B-99 Colossus 36909 | -1/Access | Destroyed 7 combat bots 37052 | -1/Access | Discovered new exit (range 9) 37054 | -1/Access | Ambient heat levels rising (+10) 37060 | -1/Access | Identified DW-4LL's Griptreads 37061 | *** | Heading to fleet! Last Messages --------------- 37042_ System corrupted: Component data lost. 37043_ Railslug penetrates G-73 Enforcer. 37043_ G-73 Enforcer suffers critical hit (Destroy). 37043_ G-73 Enforcer destroyed. 37043_ Railslug penetrates Terminal. Unknown Energy Gun melts. 37046_ Acquired 15 matter. 37052_ Railslug penetrates Sealed Barrier. 37052_ Sealed Barrier breached. 37052_ Railslug penetrates Main Access Shell. 37052_ Main Access Shell breached. 37052_ EXIT=FOUND 37054_ ALERT: Ambient heat levels +10. 37059_ Discarded Biometal Exoskeleton. 37059_ Arm. Scrap Engine damaged due to network destabilization (-10). 37060_ Identified DW-4LL's Griptreads. [Achievement: Death Machine] [Achievement: On My Own Terms] Map ----- +----------------------------------------------------+ | #??????????????????????????????????????????????? | | ###??????????????????????????????????????????????? | | ?????????????????????????????????????????????????? | | ?????????????????????????????????????????????????? | | ?????????????????????????????????????????????????? | | ?????????????????????????????????????????????????? | | #####????????????????????????????????????????????? | | +????????????????????????????????????????????? | | #####????????????????????????????????????????????? | | ?????????????????????????????????????????????????? | | ?????????????????????????????????????????????????? | | ?????????????????????????????????????????????????? | | ?????????????????????????????????????????????????? | | ?????????????????????????????????????????????????? | | ?????????????????????????????????????????????????? | | ?????????????????????????????????????????????????? | | ?????????????????????????????????????????????????? | | ?????????????????????????????????????????????????? | | ?????????????????????????????????????????????????? | | #????????????????????????????????????????????????? | | #????????????????????????"""?????????????????????? | | #???????????????????????? ??#??????????????????? | | #?????????????????????"""" "? #??????????????????? | | #?????????????????????" "? #??????????????????? | | #?????????????????????" "" "? #??????????????????? | | ??????????????????????" "@ " #??????????????????? | | ???????????????????# ?" " #??????????????????? | | ???????????????????# """" " #??????????????????? | | ???????????????????# #??????????????????? | | ???????????????????# #??????????????????? | | ???????????????????""""""" """"??????????????????? | | ??????????+????????#"" #??????????????????? | | ??????????# ???????# " #??????????????????? | | ??????????# ???????#"" #??????????????????? | | ??????????# ???????#T ##?????????????????? | | ??????????# ??????#" "#?????????????????? | | ??????????# ??????#" ##?????????????????? | | #######+### ####### #??????????????????? | | =%! ???????????? | | =[ ???????????? | | +#############+#######################???????????? | | # #???###??????????????????????????? | | # ! #???# #??????#########???????????? | | "# #???# #?????? #???????????? | | "# #???# ###### =] #???????????? | | "# #####"## # =!! ]#???????????? | | T# # + =! #???????????? | | "# # ######! # #???????????? | | "# # #????## ## #???????????? | | "# # #?????# #?? #????#+#????? | +----------------------------------------------------+ Best States ------------- Heat Dissipation 122 Coolant Potential 80 Energy Generation 57 Energy Capacity 4250 Matter Stores 700 Matter Capacity 700 Sight Range 16 Robot Scan Range 18 Terrain Scan Density 10 ECM Strength 2 Jamming Range 16 Cloak Strength 6 Additional Mass Support 20 Base Temperature (-) 200 Armor Coverage 2400 Resistance: KI 30 Resistance: TH 50 Resistance: EX 75 Core Shielding 90 Weapon Shielding 66 Weapon Cycling 30 Phase Shifting 15 Evasion (%) 75 Targeting Accuracy 38 Melee Accuracy 12 Launcher Accuracy 60 Armor Integrity Analysis 50 Recoil Reduction 6 Energy Filtering 50 Offensive Hacking 25 Item Schematics ----------------- Exp. Actuator Array | -2/Protoforge | Archive Enh. Gamma Bomb Array | -2/Protoforge | Archive Spectral Analyzer | -2/Protoforge | Archive Exp. Energy Well | -2/Protoforge | Archive Hvy. Wave Gun | -2/Protoforge | Archive Adv. Matter Compressor | -2/Protoforge | Archive Robot Schematics ------------------ A-02 Transporter | -2/Protoforge | Archive S-43 Plague | -2/Protoforge | Archive Fabricated ------------ Plasma Cutter | x2 | -7/Factory Cryofiber Web | x2 | -7/Factory Adv. Cryofiber Web | x2 | -4/Factory Repaired ---------- Lgt. Treads | 36% | -10/Materials Assault Rifle | 49% | -10/Materials Studied --------- None Alien Tech Used ----------------- Sigix Broadsword Terrabomb Core Reset Matrix Core Cannon Transdimensional Reconstructor Subatomic Replicator Achievements -------------- 404 Bigger And Badder Death Machine Not Immortal After All On My Own Terms Origins Challenges ------------ None Game ------ Seed ChipFieldCrosscalibrator Manual? 0 Play Time 09:12:23 Cumulative 217.3 hours Start 2026.04.19 @ 23:25:10 End 2026.04.26 @ 00:51:41 Sessions 69 Manual Loads 0 Difficulty Rogue Special Mode None Game No. 80 Rogue 80 Adventurer 0 Explorer 0 Win Type 2 Total 8 Types 2/0/2/2/0/0/0/1/0/1 Lore% 59 Gallery% 61 Achievement% 58 Wizard Run 0 Options --------- Layout 2 ASCII 0 Keyboard 1 Movement Numpad Keybinds 0 Fullscreen 2 Font 24/Smallcaps Map View 50x44 Zoom Use 0% Tactical HUD 1 Map Filters NONE Filters NONE Steam 1 RUN: d3b90f08-761b-42ef-9fda-892eabba5322